{"text_format":"1","workbook":"xlsx","n_sheets":7,"sheets":["Work Flow Report Pivot","Maintenance Request","Maintenance Request Data","Pasted Download","Maintenance Request Data BK","Maintenance Requests Previous","_Export 4-18-21 Sunday"],"not_rendered":{"charts":0,"images":0,"macros":1,"external_links":0,"defined_names":6,"comments":0,"pivot_tables":1},"unopened":[],"bounds":{"document_bytes":16777216,"sheet_cells":100000,"rows_first":2000,"rows_last":500,"rows_between":2000,"halvings":0,"cell_chars":16384,"cell_head_chars":4096},"cells_cut":0,"cells_raw":0,"read":"whole","date_system":"1900"}

{"sheet":"Work Flow Report Pivot","index":0,"n_rows":7,"n_cols":6,"rows_kept":7,"cut":false,"hidden":false,"merged":[[0,0,0,4],[1,0,1,4]]}
["VACNCA Resident Requested Tasks as of May 10, 2021"]
["Red number of days is for open tasks.  Green is for  Completed tasks"]
[]
["Days Open"," Completion  Days","Task Manager ID","Unit Number","Resident Name","Request"]
[11,null,"JimT",1224,"Cheryl Scheele","R039 Environmental Pest control was at my house 4/27/21.  jeff Holmes sent reprt to Linda Sheeks.  I have carpenter ants!  Jeff also said maple tree in front needs to be trimmed back, so doesn't touch roof.  Ants traveling facia (?) board to feed on tree.  I would be fine with removing tree!  Thank You.  Pest control will be here May 3 about 1:00 to 2:00pm"]
[22,null,"LindaS",1224,"Cheryl Scheele","R038 I believe I have carpenter ants on my deck, I have caught several ,  ask a couple people, my brother who had them at a house he owned &amp; I ask Jerry Conger, both said carpenter ants!  Would appreciate it if pest control could be contacted before problem gets out of hand!  Reading about them they can do a lot of damage if ignored!   Thank you!    Cheryl Scheele 1224 Northwind Circle 961-0680  "]
[33,null,"LindaS",1224,"Cheryl Scheele","R020 Dryer vent repair"]

{"sheet":"Maintenance Request","index":1,"n_rows":45,"n_cols":27,"rows_kept":45,"cut":false,"hidden":false,"merged":[]}
["Task Number","Task Manager ID","Days Open"," Completion  Days","Task Completer ID","Task Completion Date","System Date","Unit Number","Resident Name","Request Date","Telephone Number","Your Email","Request","Type of Maintenance ","Upload Files (Optional)",null,"Source Media","Notes for Form Submission by Other Than the Resident","Date Task Work Started","Task Manager","Date Task Completed","Contractor (if any)","Task Manager Notes","Form Destination (show if Unit Number is test)","versionline","User Name","Report Task Number"]
[{"$f":"LEFT(M2,4)","v":"R001"},{"$f":"$T2","v":"LindaS"},{"$f":"IF(AND(U2=\"\",$G2<>\"\"),TODAY()-$J2,\"\")","v":600},{"$f":"IF($U2<>\"\",$U2-$J2+1,\"\")","v":""}," ",{"$f":"IF($U2<>\"\",$U2,\"\")","v":""},{"$f":"IF('Maintenance Request Data'!A2<>\"\",'Maintenance Request Data'!A2,\"\")","v":"2019-09-18T02:53:41"},{"$f":"IF('Maintenance Request Data'!B2<>\"\",'Maintenance Request Data'!B2,\"\")","v":1210},{"$f":"IF('Maintenance Request Data'!C2<>\"\",'Maintenance Request Data'!C2,\"\")","v":"Pete Asprey"},{"$f":"IF('Maintenance Request Data'!D2<>\"\",'Maintenance Request Data'!D2,\"\")","v":"2019-09-18"},{"$f":"IF('Maintenance Request Data'!E2<>\"\",'Maintenance Request Data'!E2,\"\")","v":"543-5633"},{"$f":"IF('Maintenance Request Data'!F2<>\"\",'Maintenance Request Data'!F2,\"\")","v":"optionzz@gmail com"},{"$f":"IF('Maintenance Request Data'!G2<>\"\",'Maintenance Request Data'!G2,\"\")","v":"R001 Dry rot over garage"},{"$f":"IF('Maintenance Request Data'!H2<>\"\",'Maintenance Request Data'!H2,\"\")","v":"Building/Unit Maintenance"},{"$f":"IF('Maintenance Request Data'!I2<>\"\",'Maintenance Request Data'!I2,\"\")","v":""},{"$f":"IF('Maintenance Request Data'!J2<>\"\",'Maintenance Request Data'!J2,\"\")","v":" "},{"$f":"IF('Maintenance Request Data'!K2<>\"\",'Maintenance Request Data'!K2,\"\")","v":""},{"$f":"IF('Maintenance Request Data'!L2<>\"\",'Maintenance Request Data'!L2,\"\")","v":""},{"$f":"IF('Maintenance Request Data'!M2<>\"\",'Maintenance Request Data'!M2,\"\")","v":""},{"$f":"IF('Maintenance Request Data'!N2<>\"\",'Maintenance Request Data'!N2,\"\")","v":"LindaS"},{"$f":"IF('Maintenance Request Data'!O2<>\"\",'Maintenance Request Data'!O2,\"\")","v":""},{"$f":"IF('Maintenance Request Data'!P2<>\"\",'Maintenance Request Data'!P2,\"\")","v":""},{"$f":"IF('Maintenance Request Data'!Q2<>\"\",'Maintenance Request Data'!Q2,\"\")","v":""},{"$f":"IF('Maintenance Request Data'!R6<>\"\",'Maintenance Request Data'!R6,\"\")","v":""},null,null,{"$f":"LEFT(M2,4)","v":"R001"}]
["R002","LindaS",578,""," ","",{"$f":"IF('Maintenance Request Data'!A3<>\"\",'Maintenance Request Data'!A3,\"\")","v":"2019-10-10T21:23:48"},{"$f":"IF('Maintenance Request Data'!B3<>\"\",'Maintenance Request Data'!B3,\"\")","v":1210},{"$f":"IF('Maintenance Request Data'!C3<>\"\",'Maintenance Request Data'!C3,\"\")","v":"Pete and Cindy Asprey"},{"$f":"IF('Maintenance Request Data'!D3<>\"\",'Maintenance Request Data'!D3,\"\")","v":"2019-10-10"},{"$f":"IF('Maintenance Request Data'!E3<>\"\",'Maintenance Request Data'!E3,\"\")","v":"543-5633"},{"$f":"IF('Maintenance Request Data'!F3<>\"\",'Maintenance Request Data'!F3,\"\")","v":"optionzz@gmail com"},{"$f":"IF('Maintenance Request Data'!G3<>\"\",'Maintenance Request Data'!G3,\"\")","v":"R002 Hi Larry, Just a reminder that we have some (maybe a lot) of dry rot in the high wall above our garage    Pete"},{"$f":"IF('Maintenance Request Data'!H3<>\"\",'Maintenance Request Data'!H3,\"\")","v":"Building/Unit Maintenance"},{"$f":"IF('Maintenance Request Data'!I3<>\"\",'Maintenance Request Data'!I3,\"\")","v":""},{"$f":"IF('Maintenance Request Data'!J3<>\"\",'Maintenance Request Data'!J3,\"\")","v":" "},{"$f":"IF('Maintenance Request Data'!K3<>\"\",'Maintenance Request Data'!K3,\"\")","v":""},{"$f":"IF('Maintenance Request Data'!L3<>\"\",'Maintenance Request Data'!L3,\"\")","v":""},{"$f":"IF('Maintenance Request Data'!M3<>\"\",'Maintenance Request Data'!M3,\"\")","v":""},{"$f":"IF('Maintenance Request Data'!N3<>\"\",'Maintenance Request Data'!N3,\"\")","v":"LindaS"},{"$f":"IF('Maintenance Request Data'!O3<>\"\",'Maintenance Request Data'!O3,\"\")","v":""},{"$f":"IF('Maintenance Request Data'!P3<>\"\",'Maintenance Request Data'!P3,\"\")","v":""},{"$f":"IF('Maintenance Request Data'!Q3<>\"\",'Maintenance Request Data'!Q3,\"\")","v":""},{"$f":"IF('Maintenance Request Data'!R7<>\"\",'Maintenance Request Data'!R7,\"\")","v":""},null,null,"R002"]
["R003","LindaS",398,""," ","",{"$f":"IF('Maintenance Request Data'!A4<>\"\",'Maintenance Request Data'!A4,\"\")","v":"2020-04-07T21:32:29"},{"$f":"IF('Maintenance Request Data'!B4<>\"\",'Maintenance Request Data'!B4,\"\")","v":1210},{"$f":"IF('Maintenance Request Data'!C4<>\"\",'Maintenance Request Data'!C4,\"\")","v":"Pete and Cindy Asprey"},{"$f":"IF('Maintenance Request Data'!D4<>\"\",'Maintenance Request Data'!D4,\"\")","v":"2020-04-07"},{"$f":"IF('Maintenance Request Data'!E4<>\"\",'Maintenance Request Data'!E4,\"\")","v":"543-5633"},{"$f":"IF('Maintenance Request Data'!F4<>\"\",'Maintenance Request Data'!F4,\"\")","v":"optionzz@gmail com"},{"$f":"IF('Maintenance Request Data'!G4<>\"\",'Maintenance Request Data'!G4,\"\")","v":"R003 Hi Larry, Just a reminder  We have an unknown size patch of dry rot above our garage   at least 9 months old  Someone (with a TALL ladder) should check it out before it gets structural  Pete"},{"$f":"IF('Maintenance Request Data'!H4<>\"\",'Maintenance Request Data'!H4,\"\")","v":"Building/Unit Maintenance"},{"$f":"IF('Maintenance Request Data'!I4<>\"\",'Maintenance Request Data'!I4,\"\")","v":""},{"$f":"IF('Maintenance Request Data'!J4<>\"\",'Maintenance Request Data'!J4,\"\")","v":" "},{"$f":"IF('Maintenance Request Data'!K4<>\"\",'Maintenance Request Data'!K4,\"\")","v":""},{"$f":"IF('Maintenance Request Data'!L4<>\"\",'Maintenance Request Data'!L4,\"\")","v":""},{"$f":"IF('Maintenance Request Data'!M4<>\"\",'Maintenance Request Data'!M4,\"\")","v":""},{"$f":"IF('Maintenance Request Data'!N4<>\"\",'Maintenance Request Data'!N4,\"\")","v":"LindaS"},{"$f":"IF('Maintenance Request Data'!O4<>\"\",'Maintenance Request Data'!O4,\"\")","v":""},{"$f":"IF('Maintenance Request Data'!P4<>\"\",'Maintenance Request Data'!P4,\"\")","v":""},{"$f":"IF('Maintenance Request Data'!Q4<>\"\",'Maintenance Request Data'!Q4,\"\")","v":""},{"$f":"IF('Maintenance Request Data'!R8<>\"\",'Maintenance Request Data'!R8,\"\")","v":""},null,null,"R003"]
["R004","LindaS","",124," ","2021-04-08",{"$f":"IF('Maintenance Request Data'!A5<>\"\",'Maintenance Request Data'!A5,\"\")","v":"2020-12-06T19:06:41"},{"$f":"IF('Maintenance Request Data'!B5<>\"\",'Maintenance Request Data'!B5,\"\")","v":1237},{"$f":"IF('Maintenance Request Data'!C5<>\"\",'Maintenance Request Data'!C5,\"\")","v":"Catherine Collier"},{"$f":"IF('Maintenance Request Data'!D5<>\"\",'Maintenance Request Data'!D5,\"\")","v":"2020-12-06"},{"$f":"IF('Maintenance Request Data'!E5<>\"\",'Maintenance Request Data'!E5,\"\")","v":"933-0991"},{"$f":"IF('Maintenance Request Data'!F5<>\"\",'Maintenance Request Data'!F5,\"\")","v":"drcatherine collier@gmail com"},{"$f":"IF('Maintenance Request Data'!G5<>\"\",'Maintenance Request Data'!G5,\"\")","v":"R004 Window screen on NW corner got pushed out and I can't get it back on properly "},{"$f":"IF('Maintenance Request Data'!H5<>\"\",'Maintenance Request Data'!H5,\"\")","v":"Building/Unit Maintenance"},{"$f":"IF('Maintenance Request Data'!I5<>\"\",'Maintenance Request Data'!I5,\"\")","v":""},{"$f":"IF('Maintenance Request Data'!J5<>\"\",'Maintenance Request Data'!J5,\"\")","v":" "},{"$f":"IF('Maintenance Request Data'!K5<>\"\",'Maintenance Request Data'!K5,\"\")","v":""},{"$f":"IF('Maintenance Request Data'!L5<>\"\",'Maintenance Request Data'!L5,\"\")","v":""},{"$f":"IF('Maintenance Request Data'!M5<>\"\",'Maintenance Request Data'!M5,\"\")","v":""},{"$f":"IF('Maintenance Request Data'!N5<>\"\",'Maintenance Request Data'!N5,\"\")","v":"LindaS"},{"$f":"IF('Maintenance Request Data'!O5<>\"\",'Maintenance Request Data'!O5,\"\")","v":"2021-04-08"},{"$f":"IF('Maintenance Request Data'!P5<>\"\",'Maintenance Request Data'!P5,\"\")","v":""},{"$f":"IF('Maintenance Request Data'!Q5<>\"\",'Maintenance Request Data'!Q5,\"\")","v":""},{"$f":"IF('Maintenance Request Data'!R9<>\"\",'Maintenance Request Data'!R9,\"\")","v":""},null,null,"R004"]
["R005","JimT","",146," ","2021-04-30",{"$f":"IF('Maintenance Request Data'!A6<>\"\",'Maintenance Request Data'!A6,\"\")","v":"2020-12-07T08:14:56"},{"$f":"IF('Maintenance Request Data'!B6<>\"\",'Maintenance Request Data'!B6,\"\")","v":1207},{"$f":"IF('Maintenance Request Data'!C6<>\"\",'Maintenance Request Data'!C6,\"\")","v":"Cherie Thomas"},{"$f":"IF('Maintenance Request Data'!D6<>\"\",'Maintenance Request Data'!D6,\"\")","v":"2020-12-06"},{"$f":"IF('Maintenance Request Data'!E6<>\"\",'Maintenance Request Data'!E6,\"\")","v":"380-2097"},{"$f":"IF('Maintenance Request Data'!F6<>\"\",'Maintenance Request Data'!F6,\"\")","v":"cheriethomas49@comcast net"},{"$f":"IF('Maintenance Request Data'!G6<>\"\",'Maintenance Request Data'!G6,\"\")","v":"R005 Jim T  This is a real request, but I'm experimenting with automatic delivery   Will put a copy in Larry P's box&gt;&gt;  Two things:  1  Large branches fall out of a tree behind 1209 every time the wind blows  Some land on a neighbor's deck  The last wind storm, over two weeks ago, dropped another large branch that has blown up against the Dogwood behind my deck and it is still there  The Gardener's didn't mow very neatly around it, but didn't take it away    2  The Moss is growing over my curb again and onto the driveway and Street  This is so dangerous because it gets very slippery I talked to the gardener last year (also talked to the Board) about controlling it but nothing seems to happen  Please have some Moss killer put down keep us old people safe when we're out walking   Thank you!  Cherie Thomas, 1207"},{"$f":"IF('Maintenance Request Data'!H6<>\"\",'Maintenance Request Data'!H6,\"\")","v":"Landscaping and Grounds"},{"$f":"IF('Maintenance Request Data'!I6<>\"\",'Maintenance Request Data'!I6,\"\")","v":""},{"$f":"IF('Maintenance Request Data'!J6<>\"\",'Maintenance Request Data'!J6,\"\")","v":" "},{"$f":"IF('Maintenance Request Data'!K6<>\"\",'Maintenance Request Data'!K6,\"\")","v":""},{"$f":"IF('Maintenance Request Data'!L6<>\"\",'Maintenance Request Data'!L6,\"\")","v":""},{"$f":"IF('Maintenance Request Data'!M6<>\"\",'Maintenance Request Data'!M6,\"\")","v":""},{"$f":"IF('Maintenance Request Data'!N6<>\"\",'Maintenance Request Data'!N6,\"\")","v":"JimT"},"2021-04-30",{"$f":"IF('Maintenance Request Data'!P6<>\"\",'Maintenance Request Data'!P6,\"\")","v":""},"Completion Date Unknown",{"$f":"IF('Maintenance Request Data'!R10<>\"\",'Maintenance Request Data'!R10,\"\")","v":""},null,null,"R005"]
["R006","JimT","",146," ","2021-04-30",{"$f":"IF('Maintenance Request Data'!A7<>\"\",'Maintenance Request Data'!A7,\"\")","v":"2020-12-07T08:36:02"},{"$f":"IF('Maintenance Request Data'!B7<>\"\",'Maintenance Request Data'!B7,\"\")","v":1207},{"$f":"IF('Maintenance Request Data'!C7<>\"\",'Maintenance Request Data'!C7,\"\")","v":"Cherie Thomas"},{"$f":"IF('Maintenance Request Data'!D7<>\"\",'Maintenance Request Data'!D7,\"\")","v":"2020-12-06"},{"$f":"IF('Maintenance Request Data'!E7<>\"\",'Maintenance Request Data'!E7,\"\")","v":"380-2097"},{"$f":"IF('Maintenance Request Data'!F7<>\"\",'Maintenance Request Data'!F7,\"\")","v":"cheriethomas49@comcast net"},{"$f":"IF('Maintenance Request Data'!G7<>\"\",'Maintenance Request Data'!G7,\"\")","v":"R006 Two things:  1  Large branches fall out of a tree behind 1209 every time the wind blows  Some land on a neighbor's deck  The last wind storm, over two weeks ago, dropped another large branch that has blown up against the Dogwood behind my deck and it is still there  The Gardener's didn't mow very neatly around it, but didn't take it away    2  The Moss is growing over my curb again and onto the driveway and Street  This is so dangerous because it gets very slippery I talked to the gardener last year (also talked to the Board) about controlling it but nothing seems to happen  Please have some Moss killer put down keep us old people safe when we're out walking   Thank you!  Cherie Thomas, 1207"},{"$f":"IF('Maintenance Request Data'!H7<>\"\",'Maintenance Request Data'!H7,\"\")","v":"Landscaping and Grounds"},{"$f":"IF('Maintenance Request Data'!I7<>\"\",'Maintenance Request Data'!I7,\"\")","v":""},{"$f":"IF('Maintenance Request Data'!J7<>\"\",'Maintenance Request Data'!J7,\"\")","v":" "},{"$f":"IF('Maintenance Request Data'!K7<>\"\",'Maintenance Request Data'!K7,\"\")","v":""},{"$f":"IF('Maintenance Request Data'!L7<>\"\",'Maintenance Request Data'!L7,\"\")","v":""},{"$f":"IF('Maintenance Request Data'!M7<>\"\",'Maintenance Request Data'!M7,\"\")","v":""},{"$f":"IF('Maintenance Request Data'!N7<>\"\",'Maintenance Request Data'!N7,\"\")","v":"JimT"},"2021-04-30",{"$f":"IF('Maintenance Request Data'!P7<>\"\",'Maintenance Request Data'!P7,\"\")","v":""},"Completion Date Unknown",{"$f":"IF('Maintenance Request Data'!R11<>\"\",'Maintenance Request Data'!R11,\"\")","v":""},null,null,"R006"]
["R007","JimT","",142," ","2021-04-30",{"$f":"IF('Maintenance Request Data'!A8<>\"\",'Maintenance Request Data'!A8,\"\")","v":"2020-12-11T04:30:25"},{"$f":"IF('Maintenance Request Data'!B8<>\"\",'Maintenance Request Data'!B8,\"\")","v":1264},{"$f":"IF('Maintenance Request Data'!C8<>\"\",'Maintenance Request Data'!C8,\"\")","v":"Earl Sheneman"},{"$f":"IF('Maintenance Request Data'!D8<>\"\",'Maintenance Request Data'!D8,\"\")","v":"2020-12-10"},{"$f":"IF('Maintenance Request Data'!E8<>\"\",'Maintenance Request Data'!E8,\"\")","v":"6477-579"},{"$f":"IF('Maintenance Request Data'!F8<>\"\",'Maintenance Request Data'!F8,\"\")","v":"ecsheneman@msn com"},{"$f":"IF('Maintenance Request Data'!G8<>\"\",'Maintenance Request Data'!G8,\"\")","v":"R007 We have 2 bushes/shrubs that the guys as far as I know never trim unless I complain about it  They are on the back side of the house (facing Festival Blvd) on the end closest to Green's place  They are pretty overgrown and I know won't be done unless I mention it  Thanks for the help and what you are doing for the association!"},{"$f":"IF('Maintenance Request Data'!H8<>\"\",'Maintenance Request Data'!H8,\"\")","v":"Landscaping and Grounds"},{"$f":"IF('Maintenance Request Data'!I8<>\"\",'Maintenance Request Data'!I8,\"\")","v":""},{"$f":"IF('Maintenance Request Data'!J8<>\"\",'Maintenance Request Data'!J8,\"\")","v":" "},{"$f":"IF('Maintenance Request Data'!K8<>\"\",'Maintenance Request Data'!K8,\"\")","v":""},{"$f":"IF('Maintenance Request Data'!L8<>\"\",'Maintenance Request Data'!L8,\"\")","v":""},{"$f":"IF('Maintenance Request Data'!M8<>\"\",'Maintenance Request Data'!M8,\"\")","v":""},{"$f":"IF('Maintenance Request Data'!N8<>\"\",'Maintenance Request Data'!N8,\"\")","v":"JimT"},"2021-04-30",{"$f":"IF('Maintenance Request Data'!P8<>\"\",'Maintenance Request Data'!P8,\"\")","v":""},"Completion Date Unknown",{"$f":"IF('Maintenance Request Data'!R12<>\"\",'Maintenance Request Data'!R12,\"\")","v":""},null,null,"R007"]
["R008","JimT","",142," ","2021-04-30",{"$f":"IF('Maintenance Request Data'!A9<>\"\",'Maintenance Request Data'!A9,\"\")","v":"2020-12-11T04:48:43"},{"$f":"IF('Maintenance Request Data'!B9<>\"\",'Maintenance Request Data'!B9,\"\")","v":1264},{"$f":"IF('Maintenance Request Data'!C9<>\"\",'Maintenance Request Data'!C9,\"\")","v":"Earl Sheneman"},{"$f":"IF('Maintenance Request Data'!D9<>\"\",'Maintenance Request Data'!D9,\"\")","v":"2020-12-10"},{"$f":"IF('Maintenance Request Data'!E9<>\"\",'Maintenance Request Data'!E9,\"\")","v":"647-7579"},{"$f":"IF('Maintenance Request Data'!F9<>\"\",'Maintenance Request Data'!F9,\"\")","v":"ecsheneman@msn com"},{"$f":"IF('Maintenance Request Data'!G9<>\"\",'Maintenance Request Data'!G9,\"\")","v":"R008 We have 2 bushes/shrubs that the guys as far as I know never trim unless I complain about it  They are on the back side of the house (facing Festival Blvd) on the end closest to Green's place  They are pretty overgrown and I know won't be done unless I mention it  Thanks for the help and what you are doing for the association!"},{"$f":"IF('Maintenance Request Data'!H9<>\"\",'Maintenance Request Data'!H9,\"\")","v":"Landscaping and Grounds"},{"$f":"IF('Maintenance Request Data'!I9<>\"\",'Maintenance Request Data'!I9,\"\")","v":""},{"$f":"IF('Maintenance Request Data'!J9<>\"\",'Maintenance Request Data'!J9,\"\")","v":" "},{"$f":"IF('Maintenance Request Data'!K9<>\"\",'Maintenance Request Data'!K9,\"\")","v":""},{"$f":"IF('Maintenance Request Data'!L9<>\"\",'Maintenance Request Data'!L9,\"\")","v":""},{"$f":"IF('Maintenance Request Data'!M9<>\"\",'Maintenance Request Data'!M9,\"\")","v":""},{"$f":"IF('Maintenance Request Data'!N9<>\"\",'Maintenance Request Data'!N9,\"\")","v":"JimT"},"2021-04-30",{"$f":"IF('Maintenance Request Data'!P9<>\"\",'Maintenance Request Data'!P9,\"\")","v":""},"Completion Date Unknown",{"$f":"IF('Maintenance Request Data'!R13<>\"\",'Maintenance Request Data'!R13,\"\")","v":""},null,null,"R008"]
["R009","LindaS","",122," ","2021-04-21",{"$f":"IF('Maintenance Request Data'!A10<>\"\",'Maintenance Request Data'!A10,\"\")","v":"2020-12-21T19:43:02"},{"$f":"IF('Maintenance Request Data'!B10<>\"\",'Maintenance Request Data'!B10,\"\")","v":1210},{"$f":"IF('Maintenance Request Data'!C10<>\"\",'Maintenance Request Data'!C10,\"\")","v":"Pete and Cindy Asprey"},{"$f":"IF('Maintenance Request Data'!D10<>\"\",'Maintenance Request Data'!D10,\"\")","v":"2020-12-21"},{"$f":"IF('Maintenance Request Data'!E10<>\"\",'Maintenance Request Data'!E10,\"\")","v":12096023432},{"$f":"IF('Maintenance Request Data'!F10<>\"\",'Maintenance Request Data'!F10,\"\")","v":"optionzz@gmail com"},{"$f":"IF('Maintenance Request Data'!G10<>\"\",'Maintenance Request Data'!G10,\"\")","v":"R009 Our front gutters (both the west facing and south facing gutters (near the front door) are completely plugged up and overflowing in the rain this morning   Need a cleanout   Thanks, Larry!"},{"$f":"IF('Maintenance Request Data'!H10<>\"\",'Maintenance Request Data'!H10,\"\")","v":"Building/Unit Maintenance"},{"$f":"IF('Maintenance Request Data'!I10<>\"\",'Maintenance Request Data'!I10,\"\")","v":""},{"$f":"IF('Maintenance Request Data'!J10<>\"\",'Maintenance Request Data'!J10,\"\")","v":" "},{"$f":"IF('Maintenance Request Data'!K10<>\"\",'Maintenance Request Data'!K10,\"\")","v":""},{"$f":"IF('Maintenance Request Data'!L10<>\"\",'Maintenance Request Data'!L10,\"\")","v":""},{"$f":"IF('Maintenance Request Data'!M10<>\"\",'Maintenance Request Data'!M10,\"\")","v":""},{"$f":"IF('Maintenance Request Data'!N10<>\"\",'Maintenance Request Data'!N10,\"\")","v":"LindaS"},{"$f":"IF('Maintenance Request Data'!O10<>\"\",'Maintenance Request Data'!O10,\"\")","v":"2021-04-21"},{"$f":"IF('Maintenance Request Data'!P10<>\"\",'Maintenance Request Data'!P10,\"\")","v":""},{"$f":"IF('Maintenance Request Data'!Q10<>\"\",'Maintenance Request Data'!Q10,\"\")","v":""},{"$f":"IF('Maintenance Request Data'!R14<>\"\",'Maintenance Request Data'!R14,\"\")","v":""},null,null,"R009"]
["R010","JimT","",128," ","2021-04-30",{"$f":"IF('Maintenance Request Data'!A11<>\"\",'Maintenance Request Data'!A11,\"\")","v":"2020-12-25T07:18:10"},{"$f":"IF('Maintenance Request Data'!B11<>\"\",'Maintenance Request Data'!B11,\"\")","v":1210},{"$f":"IF('Maintenance Request Data'!C11<>\"\",'Maintenance Request Data'!C11,\"\")","v":"Peter Asprey"},{"$f":"IF('Maintenance Request Data'!D11<>\"\",'Maintenance Request Data'!D11,\"\")","v":"2020-12-24"},{"$f":"IF('Maintenance Request Data'!E11<>\"\",'Maintenance Request Data'!E11,\"\")","v":"543-5633"},{"$f":"IF('Maintenance Request Data'!F11<>\"\",'Maintenance Request Data'!F11,\"\")","v":"optionzz@outlook com"},{"$f":"IF('Maintenance Request Data'!G11<>\"\",'Maintenance Request Data'!G11,\"\")","v":"R010 This is a routing test   It SHOULD send a work request to Jim T from Pete A with a useless VACNCA sign jpg attached   Did it :-)?  After Delete Cache; changed to outlook com &quot;Your Email&quot;"},{"$f":"IF('Maintenance Request Data'!H11<>\"\",'Maintenance Request Data'!H11,\"\")","v":"Landscaping and Grounds"},{"$f":"IF('Maintenance Request Data'!I11<>\"\",'Maintenance Request Data'!I11,\"\")","v":"https://www villageatcordatanorthside com/vacncaresidents/wp-admin/admin-ajax php?action=rednao_sf_getfile&id=793d13411223ff0a08d50d9ce88db949"},{"$f":"IF('Maintenance Request Data'!J11<>\"\",'Maintenance Request Data'!J11,\"\")","v":" "},{"$f":"IF('Maintenance Request Data'!K11<>\"\",'Maintenance Request Data'!K11,\"\")","v":""},{"$f":"IF('Maintenance Request Data'!L11<>\"\",'Maintenance Request Data'!L11,\"\")","v":""},{"$f":"IF('Maintenance Request Data'!M11<>\"\",'Maintenance Request Data'!M11,\"\")","v":""},{"$f":"IF('Maintenance Request Data'!N11<>\"\",'Maintenance Request Data'!N11,\"\")","v":"JimT"},"2021-04-30",{"$f":"IF('Maintenance Request Data'!P10<>\"\",'Maintenance Request Data'!P10,\"\")","v":""},"Completion Date Unknown",{"$f":"IF('Maintenance Request Data'!R15<>\"\",'Maintenance Request Data'!R15,\"\")","v":""},null,null,"R010"]
["R011","LindaS","",62," ","2021-04-08",{"$f":"IF('Maintenance Request Data'!A12<>\"\",'Maintenance Request Data'!A12,\"\")","v":"2021-02-06T16:48:20"},{"$f":"IF('Maintenance Request Data'!B12<>\"\",'Maintenance Request Data'!B12,\"\")","v":1266},{"$f":"IF('Maintenance Request Data'!C12<>\"\",'Maintenance Request Data'!C12,\"\")","v":"Larry Green"},{"$f":"IF('Maintenance Request Data'!D12<>\"\",'Maintenance Request Data'!D12,\"\")","v":"2021-02-06"},{"$f":"IF('Maintenance Request Data'!E12<>\"\",'Maintenance Request Data'!E12,\"\")","v":"961-1992"},{"$f":"IF('Maintenance Request Data'!F12<>\"\",'Maintenance Request Data'!F12,\"\")","v":"northwindlar@gmail com"},{"$f":"IF('Maintenance Request Data'!G12<>\"\",'Maintenance Request Data'!G12,\"\")","v":"R011 Latch on the club house door is sticking  Club house may be left un secured  needs immediate attention!"},{"$f":"IF('Maintenance Request Data'!H12<>\"\",'Maintenance Request Data'!H12,\"\")","v":"Building/Unit Maintenance"},{"$f":"IF('Maintenance Request Data'!I12<>\"\",'Maintenance Request Data'!I12,\"\")","v":""},{"$f":"IF('Maintenance Request Data'!J12<>\"\",'Maintenance Request Data'!J12,\"\")","v":" "},{"$f":"IF('Maintenance Request Data'!K12<>\"\",'Maintenance Request Data'!K12,\"\")","v":""},{"$f":"IF('Maintenance Request Data'!L12<>\"\",'Maintenance Request Data'!L12,\"\")","v":""},{"$f":"IF('Maintenance Request Data'!M12<>\"\",'Maintenance Request Data'!M12,\"\")","v":""},{"$f":"IF('Maintenance Request Data'!N12<>\"\",'Maintenance Request Data'!N12,\"\")","v":"LindaS"},{"$f":"IF('Maintenance Request Data'!O12<>\"\",'Maintenance Request Data'!O12,\"\")","v":"2021-04-08"},{"$f":"IF('Maintenance Request Data'!P12<>\"\",'Maintenance Request Data'!P12,\"\")","v":""},{"$f":"IF('Maintenance Request Data'!Q12<>\"\",'Maintenance Request Data'!Q12,\"\")","v":""},{"$f":"IF('Maintenance Request Data'!R16<>\"\",'Maintenance Request Data'!R16,\"\")","v":""},null,null,"R011"]
["R012","JimT","",54," ","2021-04-30",{"$f":"IF('Maintenance Request Data'!A13<>\"\",'Maintenance Request Data'!A13,\"\")","v":"2021-03-08T16:23:40"},{"$f":"IF('Maintenance Request Data'!B13<>\"\",'Maintenance Request Data'!B13,\"\")","v":1200},{"$f":"IF('Maintenance Request Data'!C13<>\"\",'Maintenance Request Data'!C13,\"\")","v":"Ron Roberts"},{"$f":"IF('Maintenance Request Data'!D13<>\"\",'Maintenance Request Data'!D13,\"\")","v":"2021-03-08"},{"$f":"IF('Maintenance Request Data'!E13<>\"\",'Maintenance Request Data'!E13,\"\")","v":"224-4467"},{"$f":"IF('Maintenance Request Data'!F13<>\"\",'Maintenance Request Data'!F13,\"\")","v":"r h roberts2@comcast net"},{"$f":"IF('Maintenance Request Data'!G13<>\"\",'Maintenance Request Data'!G13,\"\")","v":"R012 It is time to remove the large maple tree behind unit 1198 and next to 1200   According to Don Wight root system is extending into irrigation pipelines and control unit junction box  Also limbs are extending over deck and becoming close to both units  "},{"$f":"IF('Maintenance Request Data'!H13<>\"\",'Maintenance Request Data'!H13,\"\")","v":"Landscaping and Grounds"},{"$f":"IF('Maintenance Request Data'!I13<>\"\",'Maintenance Request Data'!I13,\"\")","v":""},{"$f":"IF('Maintenance Request Data'!J13<>\"\",'Maintenance Request Data'!J13,\"\")","v":" "},{"$f":"IF('Maintenance Request Data'!K13<>\"\",'Maintenance Request Data'!K13,\"\")","v":""},{"$f":"IF('Maintenance Request Data'!L13<>\"\",'Maintenance Request Data'!L13,\"\")","v":""},{"$f":"IF('Maintenance Request Data'!M13<>\"\",'Maintenance Request Data'!M13,\"\")","v":""},{"$f":"IF('Maintenance Request Data'!N13<>\"\",'Maintenance Request Data'!N13,\"\")","v":"JimT"},"2021-04-30","DonW","Completion Date Unknown",{"$f":"IF('Maintenance Request Data'!R17<>\"\",'Maintenance Request Data'!R17,\"\")","v":""},null,null,"R012"]
["R013","JimT",55,""," ","",{"$f":"IF('Maintenance Request Data'!A14<>\"\",'Maintenance Request Data'!A14,\"\")","v":"2021-03-16T18:11:21"},{"$f":"IF('Maintenance Request Data'!B14<>\"\",'Maintenance Request Data'!B14,\"\")","v":1207},{"$f":"IF('Maintenance Request Data'!C14<>\"\",'Maintenance Request Data'!C14,\"\")","v":"Cherie Thomas"},{"$f":"IF('Maintenance Request Data'!D14<>\"\",'Maintenance Request Data'!D14,\"\")","v":"2021-03-16"},{"$f":"IF('Maintenance Request Data'!E14<>\"\",'Maintenance Request Data'!E14,\"\")","v":"380-2097"},{"$f":"IF('Maintenance Request Data'!F14<>\"\",'Maintenance Request Data'!F14,\"\")","v":"cheriethomas49@comcast net"},{"$f":"IF('Maintenance Request Data'!G14<>\"\",'Maintenance Request Data'!G14,\"\")","v":"R013 The plumbers who replaced the pressure valve between 1207 and 1205 left a hole that needs to be filled in with soil   They also left broken chunks of curb that needs to be hauled off "},{"$f":"IF('Maintenance Request Data'!H14<>\"\",'Maintenance Request Data'!H14,\"\")","v":"Landscaping and Grounds"},{"$f":"IF('Maintenance Request Data'!I14<>\"\",'Maintenance Request Data'!I14,\"\")","v":""},{"$f":"IF('Maintenance Request Data'!J14<>\"\",'Maintenance Request Data'!J14,\"\")","v":" "},{"$f":"IF('Maintenance Request Data'!K14<>\"\",'Maintenance Request Data'!K14,\"\")","v":""},{"$f":"IF('Maintenance Request Data'!L14<>\"\",'Maintenance Request Data'!L14,\"\")","v":""},{"$f":"IF('Maintenance Request Data'!M14<>\"\",'Maintenance Request Data'!M14,\"\")","v":""},{"$f":"IF('Maintenance Request Data'!N14<>\"\",'Maintenance Request Data'!N14,\"\")","v":"JimT"},{"$f":"IF('Maintenance Request Data'!O14<>\"\",'Maintenance Request Data'!O14,\"\")","v":""},"DonW","Mostly done 4/31/21",{"$f":"IF('Maintenance Request Data'!R18<>\"\",'Maintenance Request Data'!R18,\"\")","v":""},null,null,"R013"]
["R014","RonR","",39," ","2021-05-06",{"$f":"IF('Maintenance Request Data'!A15<>\"\",'Maintenance Request Data'!A15,\"\")","v":"2021-03-30T19:51:01"},{"$f":"IF('Maintenance Request Data'!B15<>\"\",'Maintenance Request Data'!B15,\"\")","v":1200},"Ron and Helen Roberts",{"$f":"IF('Maintenance Request Data'!D15<>\"\",'Maintenance Request Data'!D15,\"\")","v":"2021-03-29"},{"$f":"IF('Maintenance Request Data'!E15<>\"\",'Maintenance Request Data'!E15,\"\")","v":"961-1992"},"r.h.roberts@comcast.net",{"$f":"IF('Maintenance Request Data'!G15<>\"\",'Maintenance Request Data'!G15,\"\")","v":"R014 Garage Light Out Right side of garage"},{"$f":"IF('Maintenance Request Data'!H15<>\"\",'Maintenance Request Data'!H15,\"\")","v":"Building/Unit Maintenance"},{"$f":"IF('Maintenance Request Data'!I15<>\"\",'Maintenance Request Data'!I15,\"\")","v":"https://www villageatcordatanorthside com/vacncaresidents/wp-admin/admin-ajax php?action=rednao_sf_getfile&id=d6001863628a7ea798607df58e1efc34"},{"$f":"IF('Maintenance Request Data'!J15<>\"\",'Maintenance Request Data'!J15,\"\")","v":" "},{"$f":"IF('Maintenance Request Data'!K15<>\"\",'Maintenance Request Data'!K15,\"\")","v":""},{"$f":"IF('Maintenance Request Data'!L15<>\"\",'Maintenance Request Data'!L15,\"\")","v":""},{"$f":"IF('Maintenance Request Data'!M15<>\"\",'Maintenance Request Data'!M15,\"\")","v":""},{"$f":"IF('Maintenance Request Data'!N15<>\"\",'Maintenance Request Data'!N15,\"\")","v":"RonR"},{"$f":"IF('Maintenance Request Data'!O15<>\"\",'Maintenance Request Data'!O15,\"\")","v":"2021-05-06"},{"$f":"IF('Maintenance Request Data'!P15<>\"\",'Maintenance Request Data'!P15,\"\")","v":""},{"$f":"IF('Maintenance Request Data'!Q15<>\"\",'Maintenance Request Data'!Q15,\"\")","v":""},{"$f":"IF('Maintenance Request Data'!R19<>\"\",'Maintenance Request Data'!R19,\"\")","v":""},null,null,"R014"]
["R015","RonR","",39," ","2021-05-06",{"$f":"IF('Maintenance Request Data'!A16<>\"\",'Maintenance Request Data'!A16,\"\")","v":"2021-03-30T19:52:01"},{"$f":"IF('Maintenance Request Data'!B16<>\"\",'Maintenance Request Data'!B16,\"\")","v":1252},"Sue Peeples",{"$f":"IF('Maintenance Request Data'!D16<>\"\",'Maintenance Request Data'!D16,\"\")","v":"2021-03-29"},{"$f":"IF('Maintenance Request Data'!E16<>\"\",'Maintenance Request Data'!E16,\"\")","v":"961-1992"},"grand2peep@gmail.com",{"$f":"IF('Maintenance Request Data'!G16<>\"\",'Maintenance Request Data'!G16,\"\")","v":"R015 Garage Light Out "},{"$f":"IF('Maintenance Request Data'!H16<>\"\",'Maintenance Request Data'!H16,\"\")","v":"Building/Unit Maintenance"},{"$f":"IF('Maintenance Request Data'!I16<>\"\",'Maintenance Request Data'!I16,\"\")","v":"https://www villageatcordatanorthside com/vacncaresidents/wp-admin/admin-ajax php?action=rednao_sf_getfile&id=d6001863628a7ea798607df58e1efc34"},{"$f":"IF('Maintenance Request Data'!J16<>\"\",'Maintenance Request Data'!J16,\"\")","v":" "},{"$f":"IF('Maintenance Request Data'!K16<>\"\",'Maintenance Request Data'!K16,\"\")","v":""},{"$f":"IF('Maintenance Request Data'!L16<>\"\",'Maintenance Request Data'!L16,\"\")","v":""},{"$f":"IF('Maintenance Request Data'!M16<>\"\",'Maintenance Request Data'!M16,\"\")","v":""},{"$f":"IF('Maintenance Request Data'!N16<>\"\",'Maintenance Request Data'!N16,\"\")","v":"RonR"},{"$f":"IF('Maintenance Request Data'!O16<>\"\",'Maintenance Request Data'!O16,\"\")","v":"2021-05-06"},{"$f":"IF('Maintenance Request Data'!P16<>\"\",'Maintenance Request Data'!P16,\"\")","v":""},{"$f":"IF('Maintenance Request Data'!Q16<>\"\",'Maintenance Request Data'!Q16,\"\")","v":""},{"$f":"IF('Maintenance Request Data'!R20<>\"\",'Maintenance Request Data'!R20,\"\")","v":""},null,null,"R015"]
["R016","RonR",42,""," ","",{"$f":"IF('Maintenance Request Data'!A17<>\"\",'Maintenance Request Data'!A17,\"\")","v":"2021-03-30T19:53:01"},{"$f":"IF('Maintenance Request Data'!B17<>\"\",'Maintenance Request Data'!B17,\"\")","v":1254},"Empty Unit",{"$f":"IF('Maintenance Request Data'!D17<>\"\",'Maintenance Request Data'!D17,\"\")","v":"2021-03-29"},{"$f":"IF('Maintenance Request Data'!E17<>\"\",'Maintenance Request Data'!E17,\"\")","v":"961-1992"},"vacncaboard@gmail com",{"$f":"IF('Maintenance Request Data'!G17<>\"\",'Maintenance Request Data'!G17,\"\")","v":"R016 Garage Light Out "},{"$f":"IF('Maintenance Request Data'!H17<>\"\",'Maintenance Request Data'!H17,\"\")","v":"Building/Unit Maintenance"},{"$f":"IF('Maintenance Request Data'!I17<>\"\",'Maintenance Request Data'!I17,\"\")","v":"https://www villageatcordatanorthside com/vacncaresidents/wp-admin/admin-ajax php?action=rednao_sf_getfile&id=d6001863628a7ea798607df58e1efc34"},{"$f":"IF('Maintenance Request Data'!J17<>\"\",'Maintenance Request Data'!J17,\"\")","v":" "},{"$f":"IF('Maintenance Request Data'!K17<>\"\",'Maintenance Request Data'!K17,\"\")","v":""},{"$f":"IF('Maintenance Request Data'!L17<>\"\",'Maintenance Request Data'!L17,\"\")","v":""},{"$f":"IF('Maintenance Request Data'!M17<>\"\",'Maintenance Request Data'!M17,\"\")","v":""},{"$f":"IF('Maintenance Request Data'!N17<>\"\",'Maintenance Request Data'!N17,\"\")","v":"RonR"},{"$f":"IF('Maintenance Request Data'!O17<>\"\",'Maintenance Request Data'!O17,\"\")","v":""},{"$f":"IF('Maintenance Request Data'!P17<>\"\",'Maintenance Request Data'!P17,\"\")","v":""},{"$f":"IF('Maintenance Request Data'!Q17<>\"\",'Maintenance Request Data'!Q17,\"\")","v":""},{"$f":"IF('Maintenance Request Data'!R21<>\"\",'Maintenance Request Data'!R21,\"\")","v":""},null,null,"R016"]
["R017","RonR",42,""," ","",{"$f":"IF('Maintenance Request Data'!A18<>\"\",'Maintenance Request Data'!A18,\"\")","v":"2021-03-30T19:54:01"},{"$f":"IF('Maintenance Request Data'!B18<>\"\",'Maintenance Request Data'!B18,\"\")","v":1254},"Empty Unit",{"$f":"IF('Maintenance Request Data'!D18<>\"\",'Maintenance Request Data'!D18,\"\")","v":"2021-03-29"},{"$f":"IF('Maintenance Request Data'!E18<>\"\",'Maintenance Request Data'!E18,\"\")","v":"961-1992"},"vacncaboard@gmail com",{"$f":"IF('Maintenance Request Data'!G18<>\"\",'Maintenance Request Data'!G18,\"\")","v":"R017 Garage Light Out "},{"$f":"IF('Maintenance Request Data'!H18<>\"\",'Maintenance Request Data'!H18,\"\")","v":"Building/Unit Maintenance"},{"$f":"IF('Maintenance Request Data'!I18<>\"\",'Maintenance Request Data'!I18,\"\")","v":"https://www villageatcordatanorthside com/vacncaresidents/wp-admin/admin-ajax php?action=rednao_sf_getfile&id=d6001863628a7ea798607df58e1efc34"},{"$f":"IF('Maintenance Request Data'!J18<>\"\",'Maintenance Request Data'!J18,\"\")","v":" "},{"$f":"IF('Maintenance Request Data'!K18<>\"\",'Maintenance Request Data'!K18,\"\")","v":""},{"$f":"IF('Maintenance Request Data'!L18<>\"\",'Maintenance Request Data'!L18,\"\")","v":""},{"$f":"IF('Maintenance Request Data'!M18<>\"\",'Maintenance Request Data'!M18,\"\")","v":""},{"$f":"IF('Maintenance Request Data'!N18<>\"\",'Maintenance Request Data'!N18,\"\")","v":"RonR"},{"$f":"IF('Maintenance Request Data'!O18<>\"\",'Maintenance Request Data'!O18,\"\")","v":""},{"$f":"IF('Maintenance Request Data'!P18<>\"\",'Maintenance Request Data'!P18,\"\")","v":""},{"$f":"IF('Maintenance Request Data'!Q18<>\"\",'Maintenance Request Data'!Q18,\"\")","v":""},{"$f":"IF('Maintenance Request Data'!R22<>\"\",'Maintenance Request Data'!R22,\"\")","v":""},null,null,"R017"]
["R018","LindaS",44,""," ","",{"$f":"IF('Maintenance Request Data'!A19<>\"\",'Maintenance Request Data'!A19,\"\")","v":"2021-03-30T20:10:17"},{"$f":"IF('Maintenance Request Data'!B19<>\"\",'Maintenance Request Data'!B19,\"\")","v":1248},{"$f":"IF('Maintenance Request Data'!C19<>\"\",'Maintenance Request Data'!C19,\"\")","v":"Carl Grant"},{"$f":"IF('Maintenance Request Data'!D19<>\"\",'Maintenance Request Data'!D19,\"\")","v":"2021-03-27"},{"$f":"IF('Maintenance Request Data'!E19<>\"\",'Maintenance Request Data'!E19,\"\")","v":"603-0564"},{"$f":"IF('Maintenance Request Data'!F19<>\"\",'Maintenance Request Data'!F19,\"\")","v":"grant_carl@hotmail com"},{"$f":"IF('Maintenance Request Data'!G19<>\"\",'Maintenance Request Data'!G19,\"\")","v":"R018 The back of the 1248 house room got missed during the last roof treaments for moss   Would dyou please reschedule   They should come back right away since they missed it   Thanks, Carl"},{"$f":"IF('Maintenance Request Data'!H19<>\"\",'Maintenance Request Data'!H19,\"\")","v":"Building/Unit Maintenance"},{"$f":"IF('Maintenance Request Data'!I19<>\"\",'Maintenance Request Data'!I19,\"\")","v":"https://www villageatcordatanorthside com/vacncaresidents/wp-admin/admin-ajax php?action=rednao_sf_getfile&id=dca4d291e611af2a7aa1dabf55eef8c6"},{"$f":"IF('Maintenance Request Data'!J19<>\"\",'Maintenance Request Data'!J19,\"\")","v":" "},{"$f":"IF('Maintenance Request Data'!K19<>\"\",'Maintenance Request Data'!K19,\"\")","v":""},{"$f":"IF('Maintenance Request Data'!L19<>\"\",'Maintenance Request Data'!L19,\"\")","v":""},{"$f":"IF('Maintenance Request Data'!M19<>\"\",'Maintenance Request Data'!M19,\"\")","v":""},{"$f":"IF('Maintenance Request Data'!N19<>\"\",'Maintenance Request Data'!N19,\"\")","v":"LindaS"},{"$f":"IF('Maintenance Request Data'!O19<>\"\",'Maintenance Request Data'!O19,\"\")","v":""},{"$f":"IF('Maintenance Request Data'!P19<>\"\",'Maintenance Request Data'!P19,\"\")","v":""},{"$f":"IF('Maintenance Request Data'!Q19<>\"\",'Maintenance Request Data'!Q19,\"\")","v":""},{"$f":"IF('Maintenance Request Data'!R23<>\"\",'Maintenance Request Data'!R23,\"\")","v":""},null,null,"R018"]
["R019","LindaS",33,""," ","",{"$f":"IF('Maintenance Request Data'!A20<>\"\",'Maintenance Request Data'!A20,\"\")","v":"2021-04-07T00:01:00"},{"$f":"IF('Maintenance Request Data'!B20<>\"\",'Maintenance Request Data'!B20,\"\")","v":1210},"Pete Asprey",{"$f":"IF('Maintenance Request Data'!D20<>\"\",'Maintenance Request Data'!D20,\"\")","v":"2021-04-07"},{"$f":"IF('Maintenance Request Data'!E20<>\"\",'Maintenance Request Data'!E20,\"\")","v":"509-869-8560"},{"$f":"IF('Maintenance Request Data'!F20<>\"\",'Maintenance Request Data'!F20,\"\")","v":"LindaLSheeks@gmail com"},{"$f":"IF('Maintenance Request Data'!G20<>\"\",'Maintenance Request Data'!G20,\"\")","v":"R019 Replace upper fascia board above kitchen window"},{"$f":"IF('Maintenance Request Data'!H20<>\"\",'Maintenance Request Data'!H20,\"\")","v":"Building/Unit Maintenance"},{"$f":"IF('Maintenance Request Data'!I20<>\"\",'Maintenance Request Data'!I20,\"\")","v":""},{"$f":"IF('Maintenance Request Data'!J20<>\"\",'Maintenance Request Data'!J20,\"\")","v":" "},{"$f":"IF('Maintenance Request Data'!K20<>\"\",'Maintenance Request Data'!K20,\"\")","v":""},{"$f":"IF('Maintenance Request Data'!L20<>\"\",'Maintenance Request Data'!L20,\"\")","v":""},{"$f":"IF('Maintenance Request Data'!M20<>\"\",'Maintenance Request Data'!M20,\"\")","v":""},{"$f":"IF('Maintenance Request Data'!N20<>\"\",'Maintenance Request Data'!N20,\"\")","v":"LindaS"},{"$f":"IF('Maintenance Request Data'!O20<>\"\",'Maintenance Request Data'!O20,\"\")","v":""},{"$f":"IF('Maintenance Request Data'!P20<>\"\",'Maintenance Request Data'!P20,\"\")","v":""},{"$f":"IF('Maintenance Request Data'!Q20<>\"\",'Maintenance Request Data'!Q20,\"\")","v":""},{"$f":"IF('Maintenance Request Data'!R24<>\"\",'Maintenance Request Data'!R24,\"\")","v":""},null,null,"R019"]
["R020","LindaS",33,""," ","",{"$f":"IF('Maintenance Request Data'!A21<>\"\",'Maintenance Request Data'!A21,\"\")","v":"2021-04-07T00:02:00"},{"$f":"IF('Maintenance Request Data'!B21<>\"\",'Maintenance Request Data'!B21,\"\")","v":1224},{"$f":"IF('Maintenance Request Data'!C21<>\"\",'Maintenance Request Data'!C21,\"\")","v":"Cheryl Scheele"},{"$f":"IF('Maintenance Request Data'!D21<>\"\",'Maintenance Request Data'!D21,\"\")","v":"2021-04-07"},{"$f":"IF('Maintenance Request Data'!E21<>\"\",'Maintenance Request Data'!E21,\"\")","v":" 961-0680"},{"$f":"IF('Maintenance Request Data'!F21<>\"\",'Maintenance Request Data'!F21,\"\")","v":"mamacheryl04@gmail com"},{"$f":"IF('Maintenance Request Data'!G21<>\"\",'Maintenance Request Data'!G21,\"\")","v":"R020 Dryer vent repair"},{"$f":"IF('Maintenance Request Data'!H21<>\"\",'Maintenance Request Data'!H21,\"\")","v":"Building/Unit Maintenance"},{"$f":"IF('Maintenance Request Data'!I21<>\"\",'Maintenance Request Data'!I21,\"\")","v":""},{"$f":"IF('Maintenance Request Data'!J21<>\"\",'Maintenance Request Data'!J21,\"\")","v":" "},{"$f":"IF('Maintenance Request Data'!K21<>\"\",'Maintenance Request Data'!K21,\"\")","v":""},{"$f":"IF('Maintenance Request Data'!L21<>\"\",'Maintenance Request Data'!L21,\"\")","v":""},{"$f":"IF('Maintenance Request Data'!M21<>\"\",'Maintenance Request Data'!M21,\"\")","v":""},{"$f":"IF('Maintenance Request Data'!N21<>\"\",'Maintenance Request Data'!N21,\"\")","v":"LindaS"},{"$f":"IF('Maintenance Request Data'!O21<>\"\",'Maintenance Request Data'!O21,\"\")","v":""},{"$f":"IF('Maintenance Request Data'!P21<>\"\",'Maintenance Request Data'!P21,\"\")","v":""},{"$f":"IF('Maintenance Request Data'!Q21<>\"\",'Maintenance Request Data'!Q21,\"\")","v":""},{"$f":"IF('Maintenance Request Data'!R25<>\"\",'Maintenance Request Data'!R25,\"\")","v":""},null,null,"R020"]
["R021","LindaS",33,""," ","",{"$f":"IF('Maintenance Request Data'!A22<>\"\",'Maintenance Request Data'!A22,\"\")","v":"2021-04-07T00:03:00"},{"$f":"IF('Maintenance Request Data'!B22<>\"\",'Maintenance Request Data'!B22,\"\")","v":1256},{"$f":"IF('Maintenance Request Data'!C22<>\"\",'Maintenance Request Data'!C22,\"\")","v":"Pat Adams"},{"$f":"IF('Maintenance Request Data'!D22<>\"\",'Maintenance Request Data'!D22,\"\")","v":"2021-04-07"},{"$f":"IF('Maintenance Request Data'!E22<>\"\",'Maintenance Request Data'!E22,\"\")","v":"738-3142"},{"$f":"IF('Maintenance Request Data'!F22<>\"\",'Maintenance Request Data'!F22,\"\")","v":"paadams1@msn.com"},{"$f":"IF('Maintenance Request Data'!G22<>\"\",'Maintenance Request Data'!G22,\"\")","v":"R021 Shakes missing or loose on South side"},{"$f":"IF('Maintenance Request Data'!H22<>\"\",'Maintenance Request Data'!H22,\"\")","v":"Building/Unit Maintenance"},{"$f":"IF('Maintenance Request Data'!I22<>\"\",'Maintenance Request Data'!I22,\"\")","v":""},{"$f":"IF('Maintenance Request Data'!J22<>\"\",'Maintenance Request Data'!J22,\"\")","v":" "},{"$f":"IF('Maintenance Request Data'!K22<>\"\",'Maintenance Request Data'!K22,\"\")","v":""},{"$f":"IF('Maintenance Request Data'!L22<>\"\",'Maintenance Request Data'!L22,\"\")","v":"Manual Add"},{"$f":"IF('Maintenance Request Data'!M22<>\"\",'Maintenance Request Data'!M22,\"\")","v":""},{"$f":"IF('Maintenance Request Data'!N22<>\"\",'Maintenance Request Data'!N22,\"\")","v":"LindaS"},{"$f":"IF('Maintenance Request Data'!O22<>\"\",'Maintenance Request Data'!O22,\"\")","v":""},{"$f":"IF('Maintenance Request Data'!P22<>\"\",'Maintenance Request Data'!P22,\"\")","v":""},{"$f":"IF('Maintenance Request Data'!Q22<>\"\",'Maintenance Request Data'!Q22,\"\")","v":""},{"$f":"IF('Maintenance Request Data'!R26<>\"\",'Maintenance Request Data'!R26,\"\")","v":""},null,null,"R021"]
["R022","LindaS",33,""," ","",{"$f":"IF('Maintenance Request Data'!A23<>\"\",'Maintenance Request Data'!A23,\"\")","v":"2021-04-07T00:04:00"},{"$f":"IF('Maintenance Request Data'!B23<>\"\",'Maintenance Request Data'!B23,\"\")","v":1262},{"$f":"IF('Maintenance Request Data'!C23<>\"\",'Maintenance Request Data'!C23,\"\")","v":"Linda Sheeks"},{"$f":"IF('Maintenance Request Data'!D23<>\"\",'Maintenance Request Data'!D23,\"\")","v":"2021-04-07"},{"$f":"IF('Maintenance Request Data'!E23<>\"\",'Maintenance Request Data'!E23,\"\")","v":"509-869-8560"},{"$f":"IF('Maintenance Request Data'!F23<>\"\",'Maintenance Request Data'!F23,\"\")","v":"LindaLSheeks@gmail com"},{"$f":"IF('Maintenance Request Data'!G23<>\"\",'Maintenance Request Data'!G23,\"\")","v":"R022 Replace #1 window"},{"$f":"IF('Maintenance Request Data'!H23<>\"\",'Maintenance Request Data'!H23,\"\")","v":"Building/Unit Maintenance"},{"$f":"IF('Maintenance Request Data'!I23<>\"\",'Maintenance Request Data'!I23,\"\")","v":""},{"$f":"IF('Maintenance Request Data'!J23<>\"\",'Maintenance Request Data'!J23,\"\")","v":" "},{"$f":"IF('Maintenance Request Data'!K23<>\"\",'Maintenance Request Data'!K23,\"\")","v":""},{"$f":"IF('Maintenance Request Data'!L23<>\"\",'Maintenance Request Data'!L23,\"\")","v":""},{"$f":"IF('Maintenance Request Data'!M23<>\"\",'Maintenance Request Data'!M23,\"\")","v":""},{"$f":"IF('Maintenance Request Data'!N23<>\"\",'Maintenance Request Data'!N23,\"\")","v":"LindaS"},{"$f":"IF('Maintenance Request Data'!O23<>\"\",'Maintenance Request Data'!O23,\"\")","v":""},{"$f":"IF('Maintenance Request Data'!P23<>\"\",'Maintenance Request Data'!P23,\"\")","v":""},{"$f":"IF('Maintenance Request Data'!Q23<>\"\",'Maintenance Request Data'!Q23,\"\")","v":""},{"$f":"IF('Maintenance Request Data'!R27<>\"\",'Maintenance Request Data'!R27,\"\")","v":""},null,null,"R022"]
["R023","LindaS",33,""," ","",{"$f":"IF('Maintenance Request Data'!A24<>\"\",'Maintenance Request Data'!A24,\"\")","v":"2021-04-07T00:05:00"},{"$f":"IF('Maintenance Request Data'!B24<>\"\",'Maintenance Request Data'!B24,\"\")","v":1265},{"$f":"IF('Maintenance Request Data'!C24<>\"\",'Maintenance Request Data'!C24,\"\")","v":"Sharon Wagner"},{"$f":"IF('Maintenance Request Data'!D24<>\"\",'Maintenance Request Data'!D24,\"\")","v":"2021-04-07"},{"$f":"IF('Maintenance Request Data'!E24<>\"\",'Maintenance Request Data'!E24,\"\")","v":"647-6054"},{"$f":"IF('Maintenance Request Data'!F24<>\"\",'Maintenance Request Data'!F24,\"\")","v":""},{"$f":"IF('Maintenance Request Data'!G24<>\"\",'Maintenance Request Data'!G24,\"\")","v":"R023 Caulk shake(s) back of house"},{"$f":"IF('Maintenance Request Data'!H24<>\"\",'Maintenance Request Data'!H24,\"\")","v":"Building/Unit Maintenance"},{"$f":"IF('Maintenance Request Data'!I24<>\"\",'Maintenance Request Data'!I24,\"\")","v":""},{"$f":"IF('Maintenance Request Data'!J24<>\"\",'Maintenance Request Data'!J24,\"\")","v":" "},{"$f":"IF('Maintenance Request Data'!K24<>\"\",'Maintenance Request Data'!K24,\"\")","v":""},{"$f":"IF('Maintenance Request Data'!L24<>\"\",'Maintenance Request Data'!L24,\"\")","v":"Linda--no Email"},{"$f":"IF('Maintenance Request Data'!M24<>\"\",'Maintenance Request Data'!M24,\"\")","v":""},{"$f":"IF('Maintenance Request Data'!N24<>\"\",'Maintenance Request Data'!N24,\"\")","v":"LindaS"},{"$f":"IF('Maintenance Request Data'!O24<>\"\",'Maintenance Request Data'!O24,\"\")","v":""},{"$f":"IF('Maintenance Request Data'!P24<>\"\",'Maintenance Request Data'!P24,\"\")","v":""},{"$f":"IF('Maintenance Request Data'!Q24<>\"\",'Maintenance Request Data'!Q24,\"\")","v":""},{"$f":"IF('Maintenance Request Data'!R28<>\"\",'Maintenance Request Data'!R28,\"\")","v":""},null,null,"R023"]
["R024","LindaS",33,""," ","",{"$f":"IF('Maintenance Request Data'!A25<>\"\",'Maintenance Request Data'!A25,\"\")","v":"2021-04-07T00:06:00"},{"$f":"IF('Maintenance Request Data'!B25<>\"\",'Maintenance Request Data'!B25,\"\")","v":5077},{"$f":"IF('Maintenance Request Data'!C25<>\"\",'Maintenance Request Data'!C25,\"\")","v":"Dennis Fox"},{"$f":"IF('Maintenance Request Data'!D25<>\"\",'Maintenance Request Data'!D25,\"\")","v":"2021-04-07"},{"$f":"IF('Maintenance Request Data'!E25<>\"\",'Maintenance Request Data'!E25,\"\")","v":"961-8331"},{"$f":"IF('Maintenance Request Data'!F25<>\"\",'Maintenance Request Data'!F25,\"\")","v":"captainseafox@aol com"},{"$f":"IF('Maintenance Request Data'!G25<>\"\",'Maintenance Request Data'!G25,\"\")","v":"R024 Replace fasciaboard above garage; check chimney chase ; Replace #6 window"},{"$f":"IF('Maintenance Request Data'!H25<>\"\",'Maintenance Request Data'!H25,\"\")","v":"Building/Unit Maintenance"},{"$f":"IF('Maintenance Request Data'!I25<>\"\",'Maintenance Request Data'!I25,\"\")","v":""},{"$f":"IF('Maintenance Request Data'!J25<>\"\",'Maintenance Request Data'!J25,\"\")","v":" "},{"$f":"IF('Maintenance Request Data'!K25<>\"\",'Maintenance Request Data'!K25,\"\")","v":""},{"$f":"IF('Maintenance Request Data'!L25<>\"\",'Maintenance Request Data'!L25,\"\")","v":""},{"$f":"IF('Maintenance Request Data'!M25<>\"\",'Maintenance Request Data'!M25,\"\")","v":""},{"$f":"IF('Maintenance Request Data'!N25<>\"\",'Maintenance Request Data'!N25,\"\")","v":"LindaS"},{"$f":"IF('Maintenance Request Data'!O25<>\"\",'Maintenance Request Data'!O25,\"\")","v":""},{"$f":"IF('Maintenance Request Data'!P25<>\"\",'Maintenance Request Data'!P25,\"\")","v":""},{"$f":"IF('Maintenance Request Data'!Q25<>\"\",'Maintenance Request Data'!Q25,\"\")","v":""},{"$f":"IF('Maintenance Request Data'!R29<>\"\",'Maintenance Request Data'!R29,\"\")","v":""},null,null,"R024"]
["R025","LindaS",33,""," ","",{"$f":"IF('Maintenance Request Data'!A26<>\"\",'Maintenance Request Data'!A26,\"\")","v":"2021-04-07T00:07:00"},{"$f":"IF('Maintenance Request Data'!B26<>\"\",'Maintenance Request Data'!B26,\"\")","v":5075},{"$f":"IF('Maintenance Request Data'!C26<>\"\",'Maintenance Request Data'!C26,\"\")","v":"Robert Gischer"},{"$f":"IF('Maintenance Request Data'!D26<>\"\",'Maintenance Request Data'!D26,\"\")","v":"2021-04-07"},{"$f":"IF('Maintenance Request Data'!E26<>\"\",'Maintenance Request Data'!E26,\"\")","v":"752-2785"},{"$f":"IF('Maintenance Request Data'!F26<>\"\",'Maintenance Request Data'!F26,\"\")","v":"rgischer@comcast net"},{"$f":"IF('Maintenance Request Data'!G26<>\"\",'Maintenance Request Data'!G26,\"\")","v":"R025 Dryer vent repair; caulk siding SW side"},{"$f":"IF('Maintenance Request Data'!H26<>\"\",'Maintenance Request Data'!H26,\"\")","v":"Building/Unit Maintenance"},{"$f":"IF('Maintenance Request Data'!I26<>\"\",'Maintenance Request Data'!I26,\"\")","v":""},{"$f":"IF('Maintenance Request Data'!J26<>\"\",'Maintenance Request Data'!J26,\"\")","v":" "},{"$f":"IF('Maintenance Request Data'!K26<>\"\",'Maintenance Request Data'!K26,\"\")","v":""},{"$f":"IF('Maintenance Request Data'!L26<>\"\",'Maintenance Request Data'!L26,\"\")","v":""},{"$f":"IF('Maintenance Request Data'!M26<>\"\",'Maintenance Request Data'!M26,\"\")","v":""},{"$f":"IF('Maintenance Request Data'!N26<>\"\",'Maintenance Request Data'!N26,\"\")","v":"LindaS"},{"$f":"IF('Maintenance Request Data'!O26<>\"\",'Maintenance Request Data'!O26,\"\")","v":""},{"$f":"IF('Maintenance Request Data'!P26<>\"\",'Maintenance Request Data'!P26,\"\")","v":""},{"$f":"IF('Maintenance Request Data'!Q26<>\"\",'Maintenance Request Data'!Q26,\"\")","v":""},{"$f":"IF('Maintenance Request Data'!R30<>\"\",'Maintenance Request Data'!R30,\"\")","v":""},null,null,"R025"]
["R026","LindaS",33,""," ","",{"$f":"IF('Maintenance Request Data'!A27<>\"\",'Maintenance Request Data'!A27,\"\")","v":"2021-04-07T00:08:00"},{"$f":"IF('Maintenance Request Data'!B27<>\"\",'Maintenance Request Data'!B27,\"\")","v":5069},{"$f":"IF('Maintenance Request Data'!C27<>\"\",'Maintenance Request Data'!C27,\"\")","v":"Robert Fitzsimmons"},{"$f":"IF('Maintenance Request Data'!D27<>\"\",'Maintenance Request Data'!D27,\"\")","v":"2021-04-07"},{"$f":"IF('Maintenance Request Data'!E27<>\"\",'Maintenance Request Data'!E27,\"\")","v":"384-8805"},{"$f":"IF('Maintenance Request Data'!F27<>\"\",'Maintenance Request Data'!F27,\"\")","v":"rcfitzsim35@gmail com"},{"$f":"IF('Maintenance Request Data'!G27<>\"\",'Maintenance Request Data'!G27,\"\")","v":"R026 Dryer vent repair"},{"$f":"IF('Maintenance Request Data'!H27<>\"\",'Maintenance Request Data'!H27,\"\")","v":"Building/Unit Maintenance"},{"$f":"IF('Maintenance Request Data'!I27<>\"\",'Maintenance Request Data'!I27,\"\")","v":""},{"$f":"IF('Maintenance Request Data'!J27<>\"\",'Maintenance Request Data'!J27,\"\")","v":" "},{"$f":"IF('Maintenance Request Data'!K27<>\"\",'Maintenance Request Data'!K27,\"\")","v":""},{"$f":"IF('Maintenance Request Data'!L27<>\"\",'Maintenance Request Data'!L27,\"\")","v":""},{"$f":"IF('Maintenance Request Data'!M27<>\"\",'Maintenance Request Data'!M27,\"\")","v":""},{"$f":"IF('Maintenance Request Data'!N27<>\"\",'Maintenance Request Data'!N27,\"\")","v":"LindaS"},{"$f":"IF('Maintenance Request Data'!O27<>\"\",'Maintenance Request Data'!O27,\"\")","v":""},{"$f":"IF('Maintenance Request Data'!P27<>\"\",'Maintenance Request Data'!P27,\"\")","v":""},{"$f":"IF('Maintenance Request Data'!Q27<>\"\",'Maintenance Request Data'!Q27,\"\")","v":""},{"$f":"IF('Maintenance Request Data'!R31<>\"\",'Maintenance Request Data'!R31,\"\")","v":""},null,null,"R026"]
["R027","LindaS",33,""," ","",{"$f":"IF('Maintenance Request Data'!A28<>\"\",'Maintenance Request Data'!A28,\"\")","v":"2021-04-07T00:09:00"},{"$f":"IF('Maintenance Request Data'!B28<>\"\",'Maintenance Request Data'!B28,\"\")","v":1225},{"$f":"IF('Maintenance Request Data'!C28<>\"\",'Maintenance Request Data'!C28,\"\")","v":"Sharon Gjerset"},{"$f":"IF('Maintenance Request Data'!D28<>\"\",'Maintenance Request Data'!D28,\"\")","v":"2021-04-07"},{"$f":"IF('Maintenance Request Data'!E28<>\"\",'Maintenance Request Data'!E28,\"\")","v":"922-7995"},{"$f":"IF('Maintenance Request Data'!F28<>\"\",'Maintenance Request Data'!F28,\"\")","v":""},{"$f":"IF('Maintenance Request Data'!G28<>\"\",'Maintenance Request Data'!G28,\"\")","v":"R027 Replace door casing on small garage door"},{"$f":"IF('Maintenance Request Data'!H28<>\"\",'Maintenance Request Data'!H28,\"\")","v":"Building/Unit Maintenance"},{"$f":"IF('Maintenance Request Data'!I28<>\"\",'Maintenance Request Data'!I28,\"\")","v":""},{"$f":"IF('Maintenance Request Data'!J28<>\"\",'Maintenance Request Data'!J28,\"\")","v":" "},{"$f":"IF('Maintenance Request Data'!K28<>\"\",'Maintenance Request Data'!K28,\"\")","v":""},{"$f":"IF('Maintenance Request Data'!L28<>\"\",'Maintenance Request Data'!L28,\"\")","v":""},{"$f":"IF('Maintenance Request Data'!M28<>\"\",'Maintenance Request Data'!M28,\"\")","v":""},{"$f":"IF('Maintenance Request Data'!N28<>\"\",'Maintenance Request Data'!N28,\"\")","v":"LindaS"},{"$f":"IF('Maintenance Request Data'!O28<>\"\",'Maintenance Request Data'!O28,\"\")","v":""},{"$f":"IF('Maintenance Request Data'!P28<>\"\",'Maintenance Request Data'!P28,\"\")","v":""},{"$f":"IF('Maintenance Request Data'!Q28<>\"\",'Maintenance Request Data'!Q28,\"\")","v":""},{"$f":"IF('Maintenance Request Data'!R32<>\"\",'Maintenance Request Data'!R32,\"\")","v":""},null,null,"R027"]
["R028","LindaS",33,""," ","",{"$f":"IF('Maintenance Request Data'!A29<>\"\",'Maintenance Request Data'!A29,\"\")","v":"2021-04-07T00:10:00"},{"$f":"IF('Maintenance Request Data'!B29<>\"\",'Maintenance Request Data'!B29,\"\")","v":1223},{"$f":"IF('Maintenance Request Data'!C29<>\"\",'Maintenance Request Data'!C29,\"\")","v":"Les Larsen"},{"$f":"IF('Maintenance Request Data'!D29<>\"\",'Maintenance Request Data'!D29,\"\")","v":"2021-04-07"},{"$f":"IF('Maintenance Request Data'!E29<>\"\",'Maintenance Request Data'!E29,\"\")","v":"803-729-8276"},{"$f":"IF('Maintenance Request Data'!F29<>\"\",'Maintenance Request Data'!F29,\"\")","v":"nancynleslie@gmail com"},{"$f":"IF('Maintenance Request Data'!G29<>\"\",'Maintenance Request Data'!G29,\"\")","v":"R028 Paint house;"},{"$f":"IF('Maintenance Request Data'!H29<>\"\",'Maintenance Request Data'!H29,\"\")","v":"Building/Unit Maintenance"},{"$f":"IF('Maintenance Request Data'!I29<>\"\",'Maintenance Request Data'!I29,\"\")","v":""},{"$f":"IF('Maintenance Request Data'!J29<>\"\",'Maintenance Request Data'!J29,\"\")","v":" "},{"$f":"IF('Maintenance Request Data'!K29<>\"\",'Maintenance Request Data'!K29,\"\")","v":""},{"$f":"IF('Maintenance Request Data'!L29<>\"\",'Maintenance Request Data'!L29,\"\")","v":""},{"$f":"IF('Maintenance Request Data'!M29<>\"\",'Maintenance Request Data'!M29,\"\")","v":""},{"$f":"IF('Maintenance Request Data'!N29<>\"\",'Maintenance Request Data'!N29,\"\")","v":"LindaS"},{"$f":"IF('Maintenance Request Data'!O29<>\"\",'Maintenance Request Data'!O29,\"\")","v":""},{"$f":"IF('Maintenance Request Data'!P29<>\"\",'Maintenance Request Data'!P29,\"\")","v":""},{"$f":"IF('Maintenance Request Data'!Q29<>\"\",'Maintenance Request Data'!Q29,\"\")","v":""},{"$f":"IF('Maintenance Request Data'!R33<>\"\",'Maintenance Request Data'!R33,\"\")","v":""},null,null,"R028"]
["R029","LindaS",33,""," ","",{"$f":"IF('Maintenance Request Data'!A30<>\"\",'Maintenance Request Data'!A30,\"\")","v":"2021-04-07T00:11:00"},{"$f":"IF('Maintenance Request Data'!B30<>\"\",'Maintenance Request Data'!B30,\"\")","v":1223},{"$f":"IF('Maintenance Request Data'!C30<>\"\",'Maintenance Request Data'!C30,\"\")","v":"Les Larsen"},{"$f":"IF('Maintenance Request Data'!D30<>\"\",'Maintenance Request Data'!D30,\"\")","v":"2021-04-07"},{"$f":"IF('Maintenance Request Data'!E30<>\"\",'Maintenance Request Data'!E30,\"\")","v":"803-729-8276"},{"$f":"IF('Maintenance Request Data'!F30<>\"\",'Maintenance Request Data'!F30,\"\")","v":"nancynleslie@gmail com"},{"$f":"IF('Maintenance Request Data'!G30<>\"\",'Maintenance Request Data'!G30,\"\")","v":"R029 Replace #7 window"},{"$f":"IF('Maintenance Request Data'!H30<>\"\",'Maintenance Request Data'!H30,\"\")","v":"Building/Unit Maintenance"},{"$f":"IF('Maintenance Request Data'!I30<>\"\",'Maintenance Request Data'!I30,\"\")","v":""},{"$f":"IF('Maintenance Request Data'!J30<>\"\",'Maintenance Request Data'!J30,\"\")","v":" "},{"$f":"IF('Maintenance Request Data'!K30<>\"\",'Maintenance Request Data'!K30,\"\")","v":""},{"$f":"IF('Maintenance Request Data'!L30<>\"\",'Maintenance Request Data'!L30,\"\")","v":""},{"$f":"IF('Maintenance Request Data'!M30<>\"\",'Maintenance Request Data'!M30,\"\")","v":""},{"$f":"IF('Maintenance Request Data'!N30<>\"\",'Maintenance Request Data'!N30,\"\")","v":"LindaS"},{"$f":"IF('Maintenance Request Data'!O30<>\"\",'Maintenance Request Data'!O30,\"\")","v":""},{"$f":"IF('Maintenance Request Data'!P30<>\"\",'Maintenance Request Data'!P30,\"\")","v":""},{"$f":"IF('Maintenance Request Data'!Q30<>\"\",'Maintenance Request Data'!Q30,\"\")","v":""},{"$f":"IF('Maintenance Request Data'!R34<>\"\",'Maintenance Request Data'!R34,\"\")","v":""},null,null,"R029"]
["R030","LindaS","",1," ","2021-04-08",{"$f":"IF('Maintenance Request Data'!A31<>\"\",'Maintenance Request Data'!A31,\"\")","v":"2021-04-08T18:26:43"},{"$f":"IF('Maintenance Request Data'!B31<>\"\",'Maintenance Request Data'!B31,\"\")","v":1214},{"$f":"IF('Maintenance Request Data'!C31<>\"\",'Maintenance Request Data'!C31,\"\")","v":"Judy Hultgren"},{"$f":"IF('Maintenance Request Data'!D31<>\"\",'Maintenance Request Data'!D31,\"\")","v":"2021-04-08"},{"$f":"IF('Maintenance Request Data'!E31<>\"\",'Maintenance Request Data'!E31,\"\")","v":"366-8803"},{"$f":"IF('Maintenance Request Data'!F31<>\"\",'Maintenance Request Data'!F31,\"\")","v":"j_d_hultgren@msn com"},{"$f":"IF('Maintenance Request Data'!G31<>\"\",'Maintenance Request Data'!G31,\"\")","v":"R030 Older wooden window is stuck closed "},{"$f":"IF('Maintenance Request Data'!H31<>\"\",'Maintenance Request Data'!H31,\"\")","v":"Building/Unit Maintenance"},{"$f":"IF('Maintenance Request Data'!I31<>\"\",'Maintenance Request Data'!I31,\"\")","v":""},{"$f":"IF('Maintenance Request Data'!J31<>\"\",'Maintenance Request Data'!J31,\"\")","v":" "},{"$f":"IF('Maintenance Request Data'!K31<>\"\",'Maintenance Request Data'!K31,\"\")","v":""},{"$f":"IF('Maintenance Request Data'!L31<>\"\",'Maintenance Request Data'!L31,\"\")","v":""},{"$f":"IF('Maintenance Request Data'!M31<>\"\",'Maintenance Request Data'!M31,\"\")","v":""},{"$f":"IF('Maintenance Request Data'!N31<>\"\",'Maintenance Request Data'!N31,\"\")","v":"LindaS"},{"$f":"IF('Maintenance Request Data'!O31<>\"\",'Maintenance Request Data'!O31,\"\")","v":"2021-04-08"},{"$f":"IF('Maintenance Request Data'!P31<>\"\",'Maintenance Request Data'!P31,\"\")","v":""},{"$f":"IF('Maintenance Request Data'!Q31<>\"\",'Maintenance Request Data'!Q31,\"\")","v":""},{"$f":"IF('Maintenance Request Data'!R35<>\"\",'Maintenance Request Data'!R35,\"\")","v":""},null,null,"R030"]
["R031","LindaS",32,""," ","",{"$f":"IF('Maintenance Request Data'!A32<>\"\",'Maintenance Request Data'!A32,\"\")","v":"2021-04-08T18:27:52"},{"$f":"IF('Maintenance Request Data'!B32<>\"\",'Maintenance Request Data'!B32,\"\")","v":1214},{"$f":"IF('Maintenance Request Data'!C32<>\"\",'Maintenance Request Data'!C32,\"\")","v":"Judy Hultgren"},{"$f":"IF('Maintenance Request Data'!D32<>\"\",'Maintenance Request Data'!D32,\"\")","v":"2021-04-08"},{"$f":"IF('Maintenance Request Data'!E32<>\"\",'Maintenance Request Data'!E32,\"\")","v":"366-8803"},{"$f":"IF('Maintenance Request Data'!F32<>\"\",'Maintenance Request Data'!F32,\"\")","v":"j_d_hultgren@msn com"},{"$f":"IF('Maintenance Request Data'!G32<>\"\",'Maintenance Request Data'!G32,\"\")","v":"R031 Facia board rotted over back deck steps "},{"$f":"IF('Maintenance Request Data'!H32<>\"\",'Maintenance Request Data'!H32,\"\")","v":"Building/Unit Maintenance"},{"$f":"IF('Maintenance Request Data'!I32<>\"\",'Maintenance Request Data'!I32,\"\")","v":""},{"$f":"IF('Maintenance Request Data'!J32<>\"\",'Maintenance Request Data'!J32,\"\")","v":" "},{"$f":"IF('Maintenance Request Data'!K32<>\"\",'Maintenance Request Data'!K32,\"\")","v":""},{"$f":"IF('Maintenance Request Data'!L32<>\"\",'Maintenance Request Data'!L32,\"\")","v":""},{"$f":"IF('Maintenance Request Data'!M32<>\"\",'Maintenance Request Data'!M32,\"\")","v":""},{"$f":"IF('Maintenance Request Data'!N32<>\"\",'Maintenance Request Data'!N32,\"\")","v":"LindaS"},{"$f":"IF('Maintenance Request Data'!O32<>\"\",'Maintenance Request Data'!O32,\"\")","v":""},{"$f":"IF('Maintenance Request Data'!P32<>\"\",'Maintenance Request Data'!P32,\"\")","v":""},{"$f":"IF('Maintenance Request Data'!Q32<>\"\",'Maintenance Request Data'!Q32,\"\")","v":""},{"$f":"IF('Maintenance Request Data'!R36<>\"\",'Maintenance Request Data'!R36,\"\")","v":""},null,null,"R031"]
["R032","JimT",29,""," ","",{"$f":"IF('Maintenance Request Data'!A33<>\"\",'Maintenance Request Data'!A33,\"\")","v":"2021-04-11T22:32:53"},{"$f":"IF('Maintenance Request Data'!B33<>\"\",'Maintenance Request Data'!B33,\"\")","v":1207},{"$f":"IF('Maintenance Request Data'!C33<>\"\",'Maintenance Request Data'!C33,\"\")","v":"Cherie Thomas"},{"$f":"IF('Maintenance Request Data'!D33<>\"\",'Maintenance Request Data'!D33,\"\")","v":"2021-04-11"},{"$f":"IF('Maintenance Request Data'!E33<>\"\",'Maintenance Request Data'!E33,\"\")","v":"380-2097"},{"$f":"IF('Maintenance Request Data'!F33<>\"\",'Maintenance Request Data'!F33,\"\")","v":"cheriethomas49@comcast net"},{"$f":"IF('Maintenance Request Data'!G33<>\"\",'Maintenance Request Data'!G33,\"\")","v":"R032 The California Lilac on the west side of my deck is almost completely dead   Needs to be either cut back or removed   Thanks!"},{"$f":"IF('Maintenance Request Data'!H33<>\"\",'Maintenance Request Data'!H33,\"\")","v":"Landscaping and Grounds"},{"$f":"IF('Maintenance Request Data'!I33<>\"\",'Maintenance Request Data'!I33,\"\")","v":""},{"$f":"IF('Maintenance Request Data'!J33<>\"\",'Maintenance Request Data'!J33,\"\")","v":" "},{"$f":"IF('Maintenance Request Data'!K33<>\"\",'Maintenance Request Data'!K33,\"\")","v":""},{"$f":"IF('Maintenance Request Data'!L33<>\"\",'Maintenance Request Data'!L33,\"\")","v":""},{"$f":"IF('Maintenance Request Data'!M33<>\"\",'Maintenance Request Data'!M33,\"\")","v":""},{"$f":"IF('Maintenance Request Data'!N33<>\"\",'Maintenance Request Data'!N33,\"\")","v":"JimT"},{"$f":"IF('Maintenance Request Data'!O33<>\"\",'Maintenance Request Data'!O33,\"\")","v":""},{"$f":"IF('Maintenance Request Data'!P33<>\"\",'Maintenance Request Data'!P33,\"\")","v":""},{"$f":"IF('Maintenance Request Data'!Q33<>\"\",'Maintenance Request Data'!Q33,\"\")","v":""},{"$f":"IF('Maintenance Request Data'!R37<>\"\",'Maintenance Request Data'!R37,\"\")","v":""},null,null,"R032"]
["R033","RonR","",2," ","2021-04-13",{"$f":"IF('Maintenance Request Data'!A34<>\"\",'Maintenance Request Data'!A34,\"\")","v":"2021-04-13T00:26:21"},{"$f":"IF('Maintenance Request Data'!B34<>\"\",'Maintenance Request Data'!B34,\"\")","v":1239},{"$f":"IF('Maintenance Request Data'!C34<>\"\",'Maintenance Request Data'!C34,\"\")","v":"Barbara Willis"},{"$f":"IF('Maintenance Request Data'!D34<>\"\",'Maintenance Request Data'!D34,\"\")","v":"2021-04-12"},{"$f":"IF('Maintenance Request Data'!E34<>\"\",'Maintenance Request Data'!E34,\"\")","v":"671-5498"},{"$f":"IF('Maintenance Request Data'!F34<>\"\",'Maintenance Request Data'!F34,\"\")","v":"Jandbw1960@gmail com"},{"$f":"IF('Maintenance Request Data'!G34<>\"\",'Maintenance Request Data'!G34,\"\")","v":"R033 Patio light needs to be replaced "},{"$f":"IF('Maintenance Request Data'!H34<>\"\",'Maintenance Request Data'!H34,\"\")","v":"Building/Unit Maintenance"},{"$f":"IF('Maintenance Request Data'!I34<>\"\",'Maintenance Request Data'!I34,\"\")","v":""},{"$f":"IF('Maintenance Request Data'!J34<>\"\",'Maintenance Request Data'!J34,\"\")","v":" "},{"$f":"IF('Maintenance Request Data'!K34<>\"\",'Maintenance Request Data'!K34,\"\")","v":""},{"$f":"IF('Maintenance Request Data'!L34<>\"\",'Maintenance Request Data'!L34,\"\")","v":""},{"$f":"IF('Maintenance Request Data'!M34<>\"\",'Maintenance Request Data'!M34,\"\")","v":""},{"$f":"IF('Maintenance Request Data'!N34<>\"\",'Maintenance Request Data'!N34,\"\")","v":"RonR"},{"$f":"IF('Maintenance Request Data'!O34<>\"\",'Maintenance Request Data'!O34,\"\")","v":"2021-04-13"},{"$f":"IF('Maintenance Request Data'!P34<>\"\",'Maintenance Request Data'!P34,\"\")","v":""},{"$f":"IF('Maintenance Request Data'!Q34<>\"\",'Maintenance Request Data'!Q34,\"\")","v":""},{"$f":"IF('Maintenance Request Data'!R38<>\"\",'Maintenance Request Data'!R38,\"\")","v":""},null,null,"R033"]
["R034","LindaS",26,""," ","",{"$f":"IF('Maintenance Request Data'!A35<>\"\",'Maintenance Request Data'!A35,\"\")","v":"2021-04-14T23:08:08"},{"$f":"IF('Maintenance Request Data'!B35<>\"\",'Maintenance Request Data'!B35,\"\")","v":1205},{"$f":"IF('Maintenance Request Data'!C35<>\"\",'Maintenance Request Data'!C35,\"\")","v":"Dale Harvey "},{"$f":"IF('Maintenance Request Data'!D35<>\"\",'Maintenance Request Data'!D35,\"\")","v":"2021-04-14"},{"$f":"IF('Maintenance Request Data'!E35<>\"\",'Maintenance Request Data'!E35,\"\")","v":"380-2097"},{"$f":"IF('Maintenance Request Data'!F35<>\"\",'Maintenance Request Data'!F35,\"\")","v":"cheriethomas49@comcast net"},{"$f":"IF('Maintenance Request Data'!G35<>\"\",'Maintenance Request Data'!G35,\"\")","v":"R034 Large root growing into/against garage foundation "},{"$f":"IF('Maintenance Request Data'!H35<>\"\",'Maintenance Request Data'!H35,\"\")","v":"Building/Unit Maintenance"},{"$f":"IF('Maintenance Request Data'!I35<>\"\",'Maintenance Request Data'!I35,\"\")","v":""},{"$f":"IF('Maintenance Request Data'!J35<>\"\",'Maintenance Request Data'!J35,\"\")","v":" "},{"$f":"IF('Maintenance Request Data'!K35<>\"\",'Maintenance Request Data'!K35,\"\")","v":""},{"$f":"IF('Maintenance Request Data'!L35<>\"\",'Maintenance Request Data'!L35,\"\")","v":"submitted by Cherie Thomas"},{"$f":"IF('Maintenance Request Data'!M35<>\"\",'Maintenance Request Data'!M35,\"\")","v":""},{"$f":"IF('Maintenance Request Data'!N35<>\"\",'Maintenance Request Data'!N35,\"\")","v":"LindaS"},{"$f":"IF('Maintenance Request Data'!O35<>\"\",'Maintenance Request Data'!O35,\"\")","v":""},{"$f":"IF('Maintenance Request Data'!P35<>\"\",'Maintenance Request Data'!P35,\"\")","v":""},{"$f":"IF('Maintenance Request Data'!Q35<>\"\",'Maintenance Request Data'!Q35,\"\")","v":""},{"$f":"IF('Maintenance Request Data'!R39<>\"\",'Maintenance Request Data'!R39,\"\")","v":""},null,null,"R034"]
["R035","JimT",25,""," ","",{"$f":"IF('Maintenance Request Data'!A36<>\"\",'Maintenance Request Data'!A36,\"\")","v":"2021-04-15T19:27:51"},{"$f":"IF('Maintenance Request Data'!B36<>\"\",'Maintenance Request Data'!B36,\"\")","v":1212},{"$f":"IF('Maintenance Request Data'!C36<>\"\",'Maintenance Request Data'!C36,\"\")","v":"Charlotte   Martin"},{"$f":"IF('Maintenance Request Data'!D36<>\"\",'Maintenance Request Data'!D36,\"\")","v":"2021-04-15"},{"$f":"IF('Maintenance Request Data'!E36<>\"\",'Maintenance Request Data'!E36,\"\")","v":"656-5774"},{"$f":"IF('Maintenance Request Data'!F36<>\"\",'Maintenance Request Data'!F36,\"\")","v":"Clakelimerick@msn com"},{"$f":"IF('Maintenance Request Data'!G36<>\"\",'Maintenance Request Data'!G36,\"\")","v":"R035 My request is to please have the gardeners rake the leaves and Bush droppings from under the bushes between me and  1214   I have requested this MANY times and never done   "},{"$f":"IF('Maintenance Request Data'!H36<>\"\",'Maintenance Request Data'!H36,\"\")","v":"Landscaping and Grounds"},{"$f":"IF('Maintenance Request Data'!I36<>\"\",'Maintenance Request Data'!I36,\"\")","v":""},{"$f":"IF('Maintenance Request Data'!J36<>\"\",'Maintenance Request Data'!J36,\"\")","v":" "},{"$f":"IF('Maintenance Request Data'!K36<>\"\",'Maintenance Request Data'!K36,\"\")","v":""},{"$f":"IF('Maintenance Request Data'!L36<>\"\",'Maintenance Request Data'!L36,\"\")","v":""},{"$f":"IF('Maintenance Request Data'!M36<>\"\",'Maintenance Request Data'!M36,\"\")","v":""},{"$f":"IF('Maintenance Request Data'!N36<>\"\",'Maintenance Request Data'!N36,\"\")","v":"JimT"},{"$f":"IF('Maintenance Request Data'!O36<>\"\",'Maintenance Request Data'!O36,\"\")","v":""},{"$f":"IF('Maintenance Request Data'!P36<>\"\",'Maintenance Request Data'!P36,\"\")","v":""},{"$f":"IF('Maintenance Request Data'!Q36<>\"\",'Maintenance Request Data'!Q36,\"\")","v":""},{"$f":"IF('Maintenance Request Data'!#REF!<>\"\",'Maintenance Request Data'!#REF!,\"\")","v":{"$error":"#REF!"}},null,null,"R035"]
["R036","LindaS",25,""," ","",{"$f":"IF('Maintenance Request Data'!A37<>\"\",'Maintenance Request Data'!A37,\"\")","v":"2021-04-15T19:30:32"},{"$f":"IF('Maintenance Request Data'!B37<>\"\",'Maintenance Request Data'!B37,\"\")","v":1212},{"$f":"IF('Maintenance Request Data'!C37<>\"\",'Maintenance Request Data'!C37,\"\")","v":"Charlotte Martin"},{"$f":"IF('Maintenance Request Data'!D37<>\"\",'Maintenance Request Data'!D37,\"\")","v":"2021-04-15"},{"$f":"IF('Maintenance Request Data'!E37<>\"\",'Maintenance Request Data'!E37,\"\")","v":"656-5774"},{"$f":"IF('Maintenance Request Data'!F37<>\"\",'Maintenance Request Data'!F37,\"\")","v":"Clakelimerick@msn com"},{"$f":"IF('Maintenance Request Data'!G37<>\"\",'Maintenance Request Data'!G37,\"\")","v":"R036 There is a healthy growth of moss on the garage roof on the back side  "},{"$f":"IF('Maintenance Request Data'!H37<>\"\",'Maintenance Request Data'!H37,\"\")","v":"Building/Unit Maintenance"},{"$f":"IF('Maintenance Request Data'!I37<>\"\",'Maintenance Request Data'!I37,\"\")","v":""},{"$f":"IF('Maintenance Request Data'!J37<>\"\",'Maintenance Request Data'!J37,\"\")","v":" "},{"$f":"IF('Maintenance Request Data'!K37<>\"\",'Maintenance Request Data'!K37,\"\")","v":""},{"$f":"IF('Maintenance Request Data'!L37<>\"\",'Maintenance Request Data'!L37,\"\")","v":""},{"$f":"IF('Maintenance Request Data'!M37<>\"\",'Maintenance Request Data'!M37,\"\")","v":""},{"$f":"IF('Maintenance Request Data'!N37<>\"\",'Maintenance Request Data'!N37,\"\")","v":"LindaS"},{"$f":"IF('Maintenance Request Data'!O37<>\"\",'Maintenance Request Data'!O37,\"\")","v":""},{"$f":"IF('Maintenance Request Data'!P37<>\"\",'Maintenance Request Data'!P37,\"\")","v":""},{"$f":"IF('Maintenance Request Data'!Q37<>\"\",'Maintenance Request Data'!Q37,\"\")","v":""},{"$f":"IF('Maintenance Request Data'!#REF!<>\"\",'Maintenance Request Data'!#REF!,\"\")","v":{"$error":"#REF!"}},null,null,"R036"]
["R037","LindaS",25,""," ","",{"$f":"IF('Maintenance Request Data'!A38<>\"\",'Maintenance Request Data'!A38,\"\")","v":"2021-04-17T19:10:52"},{"$f":"IF('Maintenance Request Data'!B38<>\"\",'Maintenance Request Data'!B38,\"\")","v":1231},{"$f":"IF('Maintenance Request Data'!C38<>\"\",'Maintenance Request Data'!C38,\"\")","v":"Tim and Yvonne Metune"},{"$f":"IF('Maintenance Request Data'!D38<>\"\",'Maintenance Request Data'!D38,\"\")","v":"2021-04-15"},{"$f":"IF('Maintenance Request Data'!E38<>\"\",'Maintenance Request Data'!E38,\"\")","v":"733-7622"},{"$f":"IF('Maintenance Request Data'!F38<>\"\",'Maintenance Request Data'!F38,\"\")","v":"vacncaboard@gmail com"},{"$f":"IF('Maintenance Request Data'!G38<>\"\",'Maintenance Request Data'!G38,\"\")","v":"R037 3 Window Seals--when open swing out drops down   l window seals Note:  Entered by I T  "},{"$f":"IF('Maintenance Request Data'!H38<>\"\",'Maintenance Request Data'!H38,\"\")","v":"Building/Unit Maintenance"},{"$f":"IF('Maintenance Request Data'!I38<>\"\",'Maintenance Request Data'!I38,\"\")","v":""},{"$f":"IF('Maintenance Request Data'!J38<>\"\",'Maintenance Request Data'!J38,\"\")","v":" "},{"$f":"IF('Maintenance Request Data'!K38<>\"\",'Maintenance Request Data'!K38,\"\")","v":""},{"$f":"IF('Maintenance Request Data'!L38<>\"\",'Maintenance Request Data'!L38,\"\")","v":""},{"$f":"IF('Maintenance Request Data'!M38<>\"\",'Maintenance Request Data'!M38,\"\")","v":""},{"$f":"IF('Maintenance Request Data'!N38<>\"\",'Maintenance Request Data'!N38,\"\")","v":"LindaS"},{"$f":"IF('Maintenance Request Data'!O38<>\"\",'Maintenance Request Data'!O38,\"\")","v":""},{"$f":"IF('Maintenance Request Data'!P38<>\"\",'Maintenance Request Data'!P38,\"\")","v":""},{"$f":"IF('Maintenance Request Data'!Q38<>\"\",'Maintenance Request Data'!Q38,\"\")","v":""},{"$f":"IF('Maintenance Request Data'!#REF!<>\"\",'Maintenance Request Data'!#REF!,\"\")","v":{"$error":"#REF!"}},null,null,"R037"]
["R038","LindaS","",16," ","2021-05-03",{"$f":"IF('Maintenance Request Data'!A39<>\"\",'Maintenance Request Data'!A39,\"\")","v":"2021-04-19T00:07:21"},{"$f":"IF('Maintenance Request Data'!B39<>\"\",'Maintenance Request Data'!B39,\"\")","v":1224},{"$f":"IF('Maintenance Request Data'!C39<>\"\",'Maintenance Request Data'!C39,\"\")","v":"Cheryl Scheele"},{"$f":"IF('Maintenance Request Data'!D39<>\"\",'Maintenance Request Data'!D39,\"\")","v":"2021-04-18"},{"$f":"IF('Maintenance Request Data'!E39<>\"\",'Maintenance Request Data'!E39,\"\")","v":" 961-0680"},{"$f":"IF('Maintenance Request Data'!F39<>\"\",'Maintenance Request Data'!F39,\"\")","v":"mamacheryl04@gmail com"},{"$f":"IF('Maintenance Request Data'!G39<>\"\",'Maintenance Request Data'!G39,\"\")","v":"R038 I believe I have carpenter ants on my deck, I have caught several ,  ask a couple people, my brother who had them at a house he owned &amp; I ask Jerry Conger, both said carpenter ants!  Would appreciate it if pest control could be contacted before problem gets out of hand!  Reading about them they can do a lot of damage if ignored!   Thank you!    Cheryl Scheele 1224 Northwind Circle 961-0680  "},{"$f":"IF('Maintenance Request Data'!H39<>\"\",'Maintenance Request Data'!H39,\"\")","v":"Building/Unit Maintenance"},{"$f":"IF('Maintenance Request Data'!I39<>\"\",'Maintenance Request Data'!I39,\"\")","v":""},{"$f":"IF('Maintenance Request Data'!J39<>\"\",'Maintenance Request Data'!J39,\"\")","v":" "},{"$f":"IF('Maintenance Request Data'!K39<>\"\",'Maintenance Request Data'!K39,\"\")","v":""},{"$f":"IF('Maintenance Request Data'!L39<>\"\",'Maintenance Request Data'!L39,\"\")","v":""},{"$f":"IF('Maintenance Request Data'!M39<>\"\",'Maintenance Request Data'!M39,\"\")","v":""},{"$f":"IF('Maintenance Request Data'!N39<>\"\",'Maintenance Request Data'!N39,\"\")","v":"LindaS"},{"$f":"IF('Maintenance Request Data'!O39<>\"\",'Maintenance Request Data'!O39,\"\")","v":"2021-05-03"},{"$f":"IF('Maintenance Request Data'!P39<>\"\",'Maintenance Request Data'!P39,\"\")","v":""},{"$f":"IF('Maintenance Request Data'!Q39<>\"\",'Maintenance Request Data'!Q39,\"\")","v":""},{"$f":"IF('Maintenance Request Data'!#REF!<>\"\",'Maintenance Request Data'!#REF!,\"\")","v":{"$error":"#REF!"}},null,null,"R038"]
["R039","JimT",11,""," ","",{"$f":"IF('Maintenance Request Data'!A40<>\"\",'Maintenance Request Data'!A40,\"\")","v":"2021-04-30T04:27:27"},{"$f":"IF('Maintenance Request Data'!B40<>\"\",'Maintenance Request Data'!B40,\"\")","v":1224},{"$f":"IF('Maintenance Request Data'!C40<>\"\",'Maintenance Request Data'!C40,\"\")","v":"Cheryl Scheele"},{"$f":"IF('Maintenance Request Data'!D40<>\"\",'Maintenance Request Data'!D40,\"\")","v":"2021-04-29"},{"$f":"IF('Maintenance Request Data'!E40<>\"\",'Maintenance Request Data'!E40,\"\")","v":"961-0680"},{"$f":"IF('Maintenance Request Data'!F40<>\"\",'Maintenance Request Data'!F40,\"\")","v":"mamacheryl04@gmail.com"},{"$f":"IF('Maintenance Request Data'!G40<>\"\",'Maintenance Request Data'!G40,\"\")","v":"R039 Environmental Pest control was at my house 4/27/21.  jeff Holmes sent reprt to Linda Sheeks.  I have carpenter ants!  Jeff also said maple tree in front needs to be trimmed back, so doesn't touch roof.  Ants traveling facia (?) board to feed on tree.  I would be fine with removing tree!  Thank You.  Pest control will be here May 3 about 1:00 to 2:00pm"},{"$f":"IF('Maintenance Request Data'!H40<>\"\",'Maintenance Request Data'!H40,\"\")","v":"Landscaping and Grounds"},{"$f":"IF('Maintenance Request Data'!I40<>\"\",'Maintenance Request Data'!I40,\"\")","v":""},{"$f":"IF('Maintenance Request Data'!J40<>\"\",'Maintenance Request Data'!J40,\"\")","v":"Following is for OFFICIAL USE ONLY"},{"$f":"IF('Maintenance Request Data'!K40<>\"\",'Maintenance Request Data'!K40,\"\")","v":"via Print Form;"},{"$f":"IF('Maintenance Request Data'!L40<>\"\",'Maintenance Request Data'!L40,\"\")","v":"Not sure why Cheryl did it on paper.  I don't mind typing in, but can cause delay."},{"$f":"IF('Maintenance Request Data'!M40<>\"\",'Maintenance Request Data'!M40,\"\")","v":""},{"$f":"IF('Maintenance Request Data'!N40<>\"\",'Maintenance Request Data'!N40,\"\")","v":"JimT"},{"$f":"IF('Maintenance Request Data'!O40<>\"\",'Maintenance Request Data'!O40,\"\")","v":""},{"$f":"IF('Maintenance Request Data'!P40<>\"\",'Maintenance Request Data'!P40,\"\")","v":"Environmmental Pest Contol"},{"$f":"IF('Maintenance Request Data'!Q40<>\"\",'Maintenance Request Data'!Q40,\"\")","v":""},{"$f":"IF('Maintenance Request Data'!#REF!<>\"\",'Maintenance Request Data'!#REF!,\"\")","v":{"$error":"#REF!"}},null,null,"R039"]
["R040","LindaS",9,""," ","",{"$f":"IF('Maintenance Request Data'!A41<>\"\",'Maintenance Request Data'!A41,\"\")","v":"2021-05-01T16:14:00"},{"$f":"IF('Maintenance Request Data'!B41<>\"\",'Maintenance Request Data'!B41,\"\")","v":1260},{"$f":"IF('Maintenance Request Data'!C41<>\"\",'Maintenance Request Data'!C41,\"\")","v":"Nettie Post and Sheila Johansen"},{"$f":"IF('Maintenance Request Data'!D41<>\"\",'Maintenance Request Data'!D41,\"\")","v":"2021-05-01"},{"$f":"IF('Maintenance Request Data'!E41<>\"\",'Maintenance Request Data'!E41,\"\")","v":"425.286.3602"},{"$f":"IF('Maintenance Request Data'!F41<>\"\",'Maintenance Request Data'!F41,\"\")","v":"nettie.p@comcast.net"},{"$f":"IF('Maintenance Request Data'!G41<>\"\",'Maintenance Request Data'!G41,\"\")","v":"R040 1.  Moss on roof needs attention"},{"$f":"IF('Maintenance Request Data'!H41<>\"\",'Maintenance Request Data'!H41,\"\")","v":"Building/Unit Maintenance"},{"$f":"IF('Maintenance Request Data'!I41<>\"\",'Maintenance Request Data'!I41,\"\")","v":""},{"$f":"IF('Maintenance Request Data'!J41<>\"\",'Maintenance Request Data'!J41,\"\")","v":"Following is for OFFICIAL USE ONLY"},{"$f":"IF('Maintenance Request Data'!K41<>\"\",'Maintenance Request Data'!K41,\"\")","v":""},{"$f":"IF('Maintenance Request Data'!L41<>\"\",'Maintenance Request Data'!L41,\"\")","v":""},{"$f":"IF('Maintenance Request Data'!M41<>\"\",'Maintenance Request Data'!M41,\"\")","v":""},"LindaS",{"$f":"IF('Maintenance Request Data'!O41<>\"\",'Maintenance Request Data'!O41,\"\")","v":""},{"$f":"IF('Maintenance Request Data'!P41<>\"\",'Maintenance Request Data'!P41,\"\")","v":""},{"$f":"IF('Maintenance Request Data'!Q41<>\"\",'Maintenance Request Data'!Q41,\"\")","v":""},{"$f":"IF('Maintenance Request Data'!#REF!<>\"\",'Maintenance Request Data'!#REF!,\"\")","v":{"$error":"#REF!"}},null,null,"R040"]
["R041","LindaS",9,""," ","",{"$f":"IF('Maintenance Request Data'!A42<>\"\",'Maintenance Request Data'!A42,\"\")","v":"2021-05-01T16:14:00"},{"$f":"IF('Maintenance Request Data'!B42<>\"\",'Maintenance Request Data'!B42,\"\")","v":1260},{"$f":"IF('Maintenance Request Data'!C42<>\"\",'Maintenance Request Data'!C42,\"\")","v":"Nettie Post and Sheila Johansen"},{"$f":"IF('Maintenance Request Data'!D42<>\"\",'Maintenance Request Data'!D42,\"\")","v":"2021-05-01"},{"$f":"IF('Maintenance Request Data'!E42<>\"\",'Maintenance Request Data'!E42,\"\")","v":"425.286.3602"},{"$f":"IF('Maintenance Request Data'!F42<>\"\",'Maintenance Request Data'!F42,\"\")","v":"nettie.p@comcast.net"},{"$f":"IF('Maintenance Request Data'!G42<>\"\",'Maintenance Request Data'!G42,\"\")","v":"R041 2.  Carpenter ants seen inside house and in some dry rot in shingles near deck."},{"$f":"IF('Maintenance Request Data'!H42<>\"\",'Maintenance Request Data'!H42,\"\")","v":"Building/Unit Maintenance"},{"$f":"IF('Maintenance Request Data'!I42<>\"\",'Maintenance Request Data'!I42,\"\")","v":""},{"$f":"IF('Maintenance Request Data'!J42<>\"\",'Maintenance Request Data'!J42,\"\")","v":"Following is for OFFICIAL USE ONLY"},{"$f":"IF('Maintenance Request Data'!K42<>\"\",'Maintenance Request Data'!K42,\"\")","v":""},{"$f":"IF('Maintenance Request Data'!L42<>\"\",'Maintenance Request Data'!L42,\"\")","v":""},{"$f":"IF('Maintenance Request Data'!M42<>\"\",'Maintenance Request Data'!M42,\"\")","v":""},"LindaS",{"$f":"IF('Maintenance Request Data'!O42<>\"\",'Maintenance Request Data'!O42,\"\")","v":""},{"$f":"IF('Maintenance Request Data'!P42<>\"\",'Maintenance Request Data'!P42,\"\")","v":""},{"$f":"IF('Maintenance Request Data'!Q42<>\"\",'Maintenance Request Data'!Q42,\"\")","v":""},{"$f":"IF('Maintenance Request Data'!#REF!<>\"\",'Maintenance Request Data'!#REF!,\"\")","v":{"$error":"#REF!"}},null,null,"R041"]
["R042","LindaS",9,""," ","",{"$f":"IF('Maintenance Request Data'!A43<>\"\",'Maintenance Request Data'!A43,\"\")","v":"2021-05-01T16:14:00"},{"$f":"IF('Maintenance Request Data'!B43<>\"\",'Maintenance Request Data'!B43,\"\")","v":1260},{"$f":"IF('Maintenance Request Data'!C43<>\"\",'Maintenance Request Data'!C43,\"\")","v":"Nettie Post and Sheila Johansen"},{"$f":"IF('Maintenance Request Data'!D43<>\"\",'Maintenance Request Data'!D43,\"\")","v":"2021-05-01"},{"$f":"IF('Maintenance Request Data'!E43<>\"\",'Maintenance Request Data'!E43,\"\")","v":"425.286.3602"},{"$f":"IF('Maintenance Request Data'!F43<>\"\",'Maintenance Request Data'!F43,\"\")","v":"nettie.p@comcast.net"},{"$f":"IF('Maintenance Request Data'!G43<>\"\",'Maintenance Request Data'!G43,\"\")","v":"R042 3.  Old windows in one bedroom and in kitchen allow cold air seepage."},{"$f":"IF('Maintenance Request Data'!H43<>\"\",'Maintenance Request Data'!H43,\"\")","v":"Building/Unit Maintenance"},{"$f":"IF('Maintenance Request Data'!I43<>\"\",'Maintenance Request Data'!I43,\"\")","v":""},{"$f":"IF('Maintenance Request Data'!J43<>\"\",'Maintenance Request Data'!J43,\"\")","v":"Following is for OFFICIAL USE ONLY"},{"$f":"IF('Maintenance Request Data'!K43<>\"\",'Maintenance Request Data'!K43,\"\")","v":""},{"$f":"IF('Maintenance Request Data'!L43<>\"\",'Maintenance Request Data'!L43,\"\")","v":""},{"$f":"IF('Maintenance Request Data'!M43<>\"\",'Maintenance Request Data'!M43,\"\")","v":""},"LindaS",{"$f":"IF('Maintenance Request Data'!O43<>\"\",'Maintenance Request Data'!O43,\"\")","v":""},{"$f":"IF('Maintenance Request Data'!P43<>\"\",'Maintenance Request Data'!P43,\"\")","v":""},{"$f":"IF('Maintenance Request Data'!Q43<>\"\",'Maintenance Request Data'!Q43,\"\")","v":""},{"$f":"IF('Maintenance Request Data'!#REF!<>\"\",'Maintenance Request Data'!#REF!,\"\")","v":{"$error":"#REF!"}},null,null,"R042"]
["R043","LindaS",9,""," ","",{"$f":"IF('Maintenance Request Data'!A44<>\"\",'Maintenance Request Data'!A44,\"\")","v":"2021-05-01T16:14:00"},{"$f":"IF('Maintenance Request Data'!B44<>\"\",'Maintenance Request Data'!B44,\"\")","v":1260},{"$f":"IF('Maintenance Request Data'!C44<>\"\",'Maintenance Request Data'!C44,\"\")","v":"Nettie Post and Sheila Johansen"},{"$f":"IF('Maintenance Request Data'!D44<>\"\",'Maintenance Request Data'!D44,\"\")","v":"2021-05-01"},{"$f":"IF('Maintenance Request Data'!E44<>\"\",'Maintenance Request Data'!E44,\"\")","v":"425.286.3602"},{"$f":"IF('Maintenance Request Data'!F44<>\"\",'Maintenance Request Data'!F44,\"\")","v":"nettie.p@comcast.net"},{"$f":"IF('Maintenance Request Data'!G44<>\"\",'Maintenance Request Data'!G44,\"\")","v":"R043 4.  Several crawl space issues need attention (as noted in our Inspection when house was purchased)."},{"$f":"IF('Maintenance Request Data'!H44<>\"\",'Maintenance Request Data'!H44,\"\")","v":"Building/Unit Maintenance"},{"$f":"IF('Maintenance Request Data'!I44<>\"\",'Maintenance Request Data'!I44,\"\")","v":""},{"$f":"IF('Maintenance Request Data'!J44<>\"\",'Maintenance Request Data'!J44,\"\")","v":"Following is for OFFICIAL USE ONLY"},{"$f":"IF('Maintenance Request Data'!K44<>\"\",'Maintenance Request Data'!K44,\"\")","v":""},{"$f":"IF('Maintenance Request Data'!L44<>\"\",'Maintenance Request Data'!L44,\"\")","v":""},{"$f":"IF('Maintenance Request Data'!M44<>\"\",'Maintenance Request Data'!M44,\"\")","v":""},"LindaS",{"$f":"IF('Maintenance Request Data'!O44<>\"\",'Maintenance Request Data'!O44,\"\")","v":""},{"$f":"IF('Maintenance Request Data'!P44<>\"\",'Maintenance Request Data'!P44,\"\")","v":""},{"$f":"IF('Maintenance Request Data'!Q44<>\"\",'Maintenance Request Data'!Q44,\"\")","v":""},{"$f":"IF('Maintenance Request Data'!#REF!<>\"\",'Maintenance Request Data'!#REF!,\"\")","v":{"$error":"#REF!"}},null,null,"R043"]
["R044","LindaS",9,""," ","",{"$f":"IF('Maintenance Request Data'!A45<>\"\",'Maintenance Request Data'!A45,\"\")","v":"2021-05-01T16:14:00"},{"$f":"IF('Maintenance Request Data'!B45<>\"\",'Maintenance Request Data'!B45,\"\")","v":1260},{"$f":"IF('Maintenance Request Data'!C45<>\"\",'Maintenance Request Data'!C45,\"\")","v":"Nettie Post and Sheila Johansen"},{"$f":"IF('Maintenance Request Data'!D45<>\"\",'Maintenance Request Data'!D45,\"\")","v":"2021-05-01"},{"$f":"IF('Maintenance Request Data'!E45<>\"\",'Maintenance Request Data'!E45,\"\")","v":"425.286.3602"},{"$f":"IF('Maintenance Request Data'!F45<>\"\",'Maintenance Request Data'!F45,\"\")","v":"nettie.p@comcast.net"},{"$f":"IF('Maintenance Request Data'!G45<>\"\",'Maintenance Request Data'!G45,\"\")","v":"R044 5.  Some issues with rotten wood on wood trim and shingles and some caulking needed, again as noted in our Inspection when house was purchased 2 years ago."},{"$f":"IF('Maintenance Request Data'!H45<>\"\",'Maintenance Request Data'!H45,\"\")","v":"Building/Unit Maintenance"},{"$f":"IF('Maintenance Request Data'!I45<>\"\",'Maintenance Request Data'!I45,\"\")","v":""},{"$f":"IF('Maintenance Request Data'!J45<>\"\",'Maintenance Request Data'!J45,\"\")","v":"Following is for OFFICIAL USE ONLY"},{"$f":"IF('Maintenance Request Data'!K45<>\"\",'Maintenance Request Data'!K45,\"\")","v":""},{"$f":"IF('Maintenance Request Data'!L45<>\"\",'Maintenance Request Data'!L45,\"\")","v":""},{"$f":"IF('Maintenance Request Data'!M45<>\"\",'Maintenance Request Data'!M45,\"\")","v":""},"LindaS",{"$f":"IF('Maintenance Request Data'!O45<>\"\",'Maintenance Request Data'!O45,\"\")","v":""},{"$f":"IF('Maintenance Request Data'!P45<>\"\",'Maintenance Request Data'!P45,\"\")","v":""},{"$f":"IF('Maintenance Request Data'!Q45<>\"\",'Maintenance Request Data'!Q45,\"\")","v":""},{"$f":"IF('Maintenance Request Data'!#REF!<>\"\",'Maintenance Request Data'!#REF!,\"\")","v":{"$error":"#REF!"}},null,null,"R044"]

{"sheet":"Maintenance Request Data","index":2,"n_rows":45,"n_cols":22,"rows_kept":45,"cut":false,"hidden":false,"merged":[]}
["System Date","Unit Number","Resident Name","Request Date","Telephone Number","Your Email","Your Maintenance Request - Describe Your Maintenance Problem Below","Type of Maintenance ","Upload Files (Optional)",null,"Source Media","Notes for Form Submission by Other Than the Resident","Date Task Work Started","Task Manager","Date Task Completed","Contractor (if any)","Task Manager Notes","Form Destination (show if Unit Number is test)","versionline","User Name"]
["2019-09-18T02:53:41",1210,"Pete Asprey","2019-09-18","543-5633","optionzz@gmail com","R001 Dry rot over garage","Building/Unit Maintenance",null," ",null,null,null,"LindaS",null,null,null,null,null,"vacncait",{"$f":"LEFT(G2,4)","v":"R001"},{"$f":"B2","v":1210}]
["2019-10-10T21:23:48",1210,"Pete and Cindy Asprey","2019-10-10","543-5633","optionzz@gmail com","R002 Hi Larry, Just a reminder that we have some (maybe a lot) of dry rot in the high wall above our garage    Pete","Building/Unit Maintenance",null," ",null,null,null,"LindaS",null,null,null,null,null,"vacncait","R002",{"$f":"B3","v":1210}]
["2020-04-07T21:32:29",1210,"Pete and Cindy Asprey","2020-04-07","543-5633","optionzz@gmail com","R003 Hi Larry, Just a reminder  We have an unknown size patch of dry rot above our garage   at least 9 months old  Someone (with a TALL ladder) should check it out before it gets structural  Pete","Building/Unit Maintenance",null," ",null,null,null,"LindaS",null,null,null,null,null,"Pete A","R003",1210]
["2020-12-06T19:06:41",1237,"Catherine Collier","2020-12-06","933-0991","drcatherine collier@gmail com","R004 Window screen on NW corner got pushed out and I can't get it back on properly ","Building/Unit Maintenance",null," ",null,null,null,"LindaS","2021-04-08",null,null,null,"VACNCA Form PM00 00",null,"R004",1237]
["2020-12-07T08:14:56",1207,"Cherie Thomas","2020-12-06","380-2097","cheriethomas49@comcast net","R005 Jim T  This is a real request, but I'm experimenting with automatic delivery   Will put a copy in Larry P's box&gt;&gt;  Two things:  1  Large branches fall out of a tree behind 1209 every time the wind blows  Some land on a neighbor's deck  The last wind storm, over two weeks ago, dropped another large branch that has blown up against the Dogwood behind my deck and it is still there  The Gardener's didn't mow very neatly around it, but didn't take it away    2  The Moss is growing over my curb again and onto the driveway and Street  This is so dangerous because it gets very slippery I talked to the gardener last year (also talked to the Board) about controlling it but nothing seems to happen  Please have some Moss killer put down keep us old people safe when we're out walking   Thank you!  Cherie Thomas, 1207","Landscaping and Grounds",null," ",null,null,null,"JimT",null,null,null,null,"VACNCA Form PM00 00   Printed Copy will be sent to Larry Pollett","Pete A","R005",1207]
["2020-12-07T08:36:02",1207,"Cherie Thomas","2020-12-06","380-2097","cheriethomas49@comcast net","R006 Two things:  1  Large branches fall out of a tree behind 1209 every time the wind blows  Some land on a neighbor's deck  The last wind storm, over two weeks ago, dropped another large branch that has blown up against the Dogwood behind my deck and it is still there  The Gardener's didn't mow very neatly around it, but didn't take it away    2  The Moss is growing over my curb again and onto the driveway and Street  This is so dangerous because it gets very slippery I talked to the gardener last year (also talked to the Board) about controlling it but nothing seems to happen  Please have some Moss killer put down keep us old people safe when we're out walking   Thank you!  Cherie Thomas, 1207","Landscaping and Grounds",null," ",null,null,null,"JimT",null,null,null,null,"VACNCA Form PM00 00   Printed Copy will be sent to Larry Pollett","Pete A","R006",1207]
["2020-12-11T04:30:25",1264,"Earl Sheneman","2020-12-10","6477-579","ecsheneman@msn com","R007 We have 2 bushes/shrubs that the guys as far as I know never trim unless I complain about it  They are on the back side of the house (facing Festival Blvd) on the end closest to Green's place  They are pretty overgrown and I know won't be done unless I mention it  Thanks for the help and what you are doing for the association!","Landscaping and Grounds",null," ",null,null,null,"JimT",null,null,null,null,"VACNCA Form PM00 00   Printed Copy will be sent to Larry Pollett"," ","R007",1264]
["2020-12-11T04:48:43",1264,"Earl Sheneman","2020-12-10","647-7579","ecsheneman@msn com","R008 We have 2 bushes/shrubs that the guys as far as I know never trim unless I complain about it  They are on the back side of the house (facing Festival Blvd) on the end closest to Green's place  They are pretty overgrown and I know won't be done unless I mention it  Thanks for the help and what you are doing for the association!","Landscaping and Grounds",null," ",null,null,null,"JimT",null,null,null,null,"VACNCA Form PM00 00   Printed Copy will be sent to Larry Pollett"," ","R008",1264]
["2020-12-21T19:43:02",1210,"Pete and Cindy Asprey","2020-12-21",12096023432,"optionzz@gmail com","R009 Our front gutters (both the west facing and south facing gutters (near the front door) are completely plugged up and overflowing in the rain this morning   Need a cleanout   Thanks, Larry!","Building/Unit Maintenance",null," ",null,null,null,"LindaS","2021-04-21",null,null,null,"VACNCA Form PM00 00   Printed Copy will be sent to Larry Pollett","Pete A","R009",1210]
["2020-12-25T07:18:10",1210,"Peter Asprey","2020-12-24","543-5633","optionzz@outlook com","R010 This is a routing test   It SHOULD send a work request to Jim T from Pete A with a useless VACNCA sign jpg attached   Did it :-)?  After Delete Cache; changed to outlook com &quot;Your Email&quot;","Landscaping and Grounds","https://www villageatcordatanorthside com/vacncaresidents/wp-admin/admin-ajax php?action=rednao_sf_getfile&id=793d13411223ff0a08d50d9ce88db949"," ",null,null,null,"JimT",null,null,null,null,null,"Pete A","R010",1210]
["2021-02-06T16:48:20",1266,"Larry Green","2021-02-06","961-1992","northwindlar@gmail com","R011 Latch on the club house door is sticking  Club house may be left un secured  needs immediate attention!","Building/Unit Maintenance",null," ",null,null,null,"LindaS","2021-04-08",null,null,null,null,null,"R011",1266]
["2021-03-08T16:23:40",1200,"Ron Roberts","2021-03-08","224-4467","r h roberts2@comcast net","R012 It is time to remove the large maple tree behind unit 1198 and next to 1200   According to Don Wight root system is extending into irrigation pipelines and control unit junction box  Also limbs are extending over deck and becoming close to both units  ","Landscaping and Grounds",null," ",null,null,null,"JimT",null,null,null,null,null,null,"R012",1200]
["2021-03-16T18:11:21",1207,"Cherie Thomas","2021-03-16","380-2097","cheriethomas49@comcast net","R013 The plumbers who replaced the pressure valve between 1207 and 1205 left a hole that needs to be filled in with soil   They also left broken chunks of curb that needs to be hauled off ","Landscaping and Grounds",null," ",null,null,null,"JimT",null,null,null,null,null,null,"R013",1207]
["2021-03-30T19:51:01",1200,"Larry Green","2021-03-29","961-1992","northwindlar@gmail com","R014 Garage Light Out Right side of garage","Building/Unit Maintenance","https://www villageatcordatanorthside com/vacncaresidents/wp-admin/admin-ajax php?action=rednao_sf_getfile&id=d6001863628a7ea798607df58e1efc34"," ",null,null,null,"RonR","2021-05-06",null,null,null,null,null,"R014",1200]
["2021-03-30T19:52:01",1252,"Larry Green","2021-03-29","961-1992","northwindlar@gmail com","R015 Garage Light Out ","Building/Unit Maintenance","https://www villageatcordatanorthside com/vacncaresidents/wp-admin/admin-ajax php?action=rednao_sf_getfile&id=d6001863628a7ea798607df58e1efc34"," ",null,null,null,"RonR","2021-05-06",null,null,null,null,null,"R015",1252]
["2021-03-30T19:53:01",1254,"Larry Green","2021-03-29","961-1992","northwindlar@gmail com","R016 Garage Light Out ","Building/Unit Maintenance","https://www villageatcordatanorthside com/vacncaresidents/wp-admin/admin-ajax php?action=rednao_sf_getfile&id=d6001863628a7ea798607df58e1efc34"," ",null,null,null,"RonR",null,null,null,null,null,null,"R016",1254]
["2021-03-30T19:54:01",1254,"Larry Green","2021-03-29","961-1992","northwindlar@gmail com","R017 Garage Light Out ","Building/Unit Maintenance","https://www villageatcordatanorthside com/vacncaresidents/wp-admin/admin-ajax php?action=rednao_sf_getfile&id=d6001863628a7ea798607df58e1efc34"," ",null,null,null,"RonR",null,null,null,null,null,null,"R017",1254]
["2021-03-30T20:10:17",1248,"Carl Grant","2021-03-27","603-0564","grant_carl@hotmail com","R018 The back of the 1248 house room got missed during the last roof treaments for moss   Would dyou please reschedule   They should come back right away since they missed it   Thanks, Carl","Building/Unit Maintenance","https://www villageatcordatanorthside com/vacncaresidents/wp-admin/admin-ajax php?action=rednao_sf_getfile&id=dca4d291e611af2a7aa1dabf55eef8c6"," ",null,null,null,"LindaS",null,null,null,null,null,"Pete A","R018",1248]
["2021-04-07T00:01:00",1210,"Pete Asprey","2021-04-07","509-869-8560","LindaLSheeks@gmail com","R019 Replace upper fascia board above kitchen window","Building/Unit Maintenance",null," ",null,null,null,"LindaS",null,null,null,null,null,null,"R019",1210]
["2021-04-07T00:02:00",1224,"Cheryl Scheele","2021-04-07"," 961-0680","mamacheryl04@gmail com","R020 Dryer vent repair","Building/Unit Maintenance",null," ",null,null,null,"LindaS",null,null,null,null,null,null,"R020",1224]
["2021-04-07T00:03:00",1256,"Pat Adams","2021-04-07","738-3142","paadams1@msn.com","R021 Shakes missing or loose on South side","Building/Unit Maintenance",null," ",null,"Manual Add",null,"LindaS",null,null,null,null,null,null,"R021",1256]
["2021-04-07T00:04:00",1262,"Linda Sheeks","2021-04-07","509-869-8560","LindaLSheeks@gmail com","R022 Replace #1 window","Building/Unit Maintenance",null," ",null,null,null,"LindaS",null,null,null,null,null,null,"R022",1262]
["2021-04-07T00:05:00",1265,"Sharon Wagner","2021-04-07","647-6054",null,"R023 Caulk shake(s) back of house","Building/Unit Maintenance",null," ",null,"Linda--no Email",null,"LindaS",null,null,null,null,null,null,"R023",1265]
["2021-04-07T00:06:00",5077,"Dennis Fox","2021-04-07","961-8331","captainseafox@aol com","R024 Replace fasciaboard above garage; check chimney chase ; Replace #6 window","Building/Unit Maintenance",null," ",null,null,null,"LindaS",null,null,null,null,null,null,"R024",5077]
["2021-04-07T00:07:00",5075,"Robert Gischer","2021-04-07","752-2785","rgischer@comcast net","R025 Dryer vent repair; caulk siding SW side","Building/Unit Maintenance",null," ",null,null,null,"LindaS",null,null,null,null,null,null,"R025",5075]
["2021-04-07T00:08:00",5069,"Robert Fitzsimmons","2021-04-07","384-8805","rcfitzsim35@gmail com","R026 Dryer vent repair","Building/Unit Maintenance",null," ",null,null,null,"LindaS",null,null,null,null,null,null,"R026",5069]
["2021-04-07T00:09:00",1225,"Sharon Gjerset","2021-04-07","922-7995",null,"R027 Replace door casing on small garage door","Building/Unit Maintenance",null," ",null,null,null,"LindaS",null,null,null,null,null,null,"R027",1225]
["2021-04-07T00:10:00",1223,"Les Larsen","2021-04-07","803-729-8276","nancynleslie@gmail com","R028 Paint house;","Building/Unit Maintenance",null," ",null,null,null,"LindaS",null,null,null,null,null,null,"R028",1223]
["2021-04-07T00:11:00",1223,"Les Larsen","2021-04-07","803-729-8276","nancynleslie@gmail com","R029 Replace #7 window","Building/Unit Maintenance",null," ",null,null,null,"LindaS",null,null,null,null,null,null,"R029",1223]
["2021-04-08T18:26:43",1214,"Judy Hultgren","2021-04-08","366-8803","j_d_hultgren@msn com","R030 Older wooden window is stuck closed ","Building/Unit Maintenance",null," ",null,null,null,"LindaS","2021-04-08",null,null,null,null,null,"R030",1214]
["2021-04-08T18:27:52",1214,"Judy Hultgren","2021-04-08","366-8803","j_d_hultgren@msn com","R031 Facia board rotted over back deck steps ","Building/Unit Maintenance",null," ",null,null,null,"LindaS",null,null,null,null,null,null,{"$f":"LEFT(G32,4)","v":"R031"},1214]
["2021-04-11T22:32:53",1207,"Cherie Thomas","2021-04-11","380-2097","cheriethomas49@comcast net","R032 The California Lilac on the west side of my deck is almost completely dead   Needs to be either cut back or removed   Thanks!","Landscaping and Grounds",null," ",null,null,null,"JimT",null,null,null,null,null,null,{"$f":"LEFT(G33,4)","v":"R032"},1207]
["2021-04-13T00:26:21",1239,"Barbara Willis","2021-04-12","671-5498","Jandbw1960@gmail com","R033 Patio light needs to be replaced ","Building/Unit Maintenance",null," ",null,null,null,"RonR","2021-04-13",null,null,null,null,null,"R033",1239]
["2021-04-14T23:08:08",1205,"Dale Harvey ","2021-04-14","380-2097","cheriethomas49@comcast net","R034 Large root growing into/against garage foundation ","Building/Unit Maintenance",null," ",null,"submitted by Cherie Thomas",null,"LindaS",null,null,null,null,null,null,"R034",1205]
["2021-04-15T19:27:51",1212,"Charlotte   Martin","2021-04-15","656-5774","Clakelimerick@msn com","R035 My request is to please have the gardeners rake the leaves and Bush droppings from under the bushes between me and  1214   I have requested this MANY times and never done   ","Landscaping and Grounds",null," ",null,null,null,"JimT",null,null,null,null,null,null,"R035",1212]
["2021-04-15T19:30:32",1212,"Charlotte Martin","2021-04-15","656-5774","Clakelimerick@msn com","R036 There is a healthy growth of moss on the garage roof on the back side  ","Building/Unit Maintenance",null," ",null,null,null,"LindaS",null,null,null,null,null,null,"R036",1212]
["2021-04-17T19:10:52",1231,"Tim and Yvonne Metune","2021-04-15","733-7622","vacncaboard@gmail com","R037 3 Window Seals--when open swing out drops down   l window seals Note:  Entered by I T  ","Building/Unit Maintenance",null," ",null,null,null,"LindaS",null,null,null,null,null,"Pete A","R037",1231]
["2021-04-19T00:07:21",1224,"Cheryl Scheele","2021-04-18"," 961-0680","mamacheryl04@gmail com","R038 I believe I have carpenter ants on my deck, I have caught several ,  ask a couple people, my brother who had them at a house he owned &amp; I ask Jerry Conger, both said carpenter ants!  Would appreciate it if pest control could be contacted before problem gets out of hand!  Reading about them they can do a lot of damage if ignored!   Thank you!    Cheryl Scheele 1224 Northwind Circle 961-0680  ","Building/Unit Maintenance",null," ",null,null,null,"LindaS","2021-05-03",null,null,null,null,null,"R038",1224]
["2021-04-30T04:27:27",1224,"Cheryl Scheele","2021-04-29","961-0680","mamacheryl04@gmail.com","R039 Environmental Pest control was at my house 4/27/21.  jeff Holmes sent reprt to Linda Sheeks.  I have carpenter ants!  Jeff also said maple tree in front needs to be trimmed back, so doesn't touch roof.  Ants traveling facia (?) board to feed on tree.  I would be fine with removing tree!  Thank You.  Pest control will be here May 3 about 1:00 to 2:00pm","Landscaping and Grounds",null,"Following is for OFFICIAL USE ONLY","via Print Form;","Not sure why Cheryl did it on paper.  I don't mind typing in, but can cause delay.",null,"JimT",null,"Environmmental Pest Contol",null,null,null,"Pete A","R039",1224]
["2021-05-01T16:14:00",1260,"Nettie Post and Sheila Johansen","2021-05-01","425.286.3602","nettie.p@comcast.net","R040 1.  Moss on roof needs attention","Building/Unit Maintenance",null,"Following is for OFFICIAL USE ONLY",null,null,null,null,null,null,null,null,null,null,"R040",1260]
["2021-05-01T16:14:00",1260,"Nettie Post and Sheila Johansen","2021-05-01","425.286.3602","nettie.p@comcast.net","R041 2.  Carpenter ants seen inside house and in some dry rot in shingles near deck.","Building/Unit Maintenance",null,"Following is for OFFICIAL USE ONLY",null,null,null,null,null,null,null,null,null,null,"R041",1260]
["2021-05-01T16:14:00",1260,"Nettie Post and Sheila Johansen","2021-05-01","425.286.3602","nettie.p@comcast.net","R042 3.  Old windows in one bedroom and in kitchen allow cold air seepage.","Building/Unit Maintenance",null,"Following is for OFFICIAL USE ONLY",null,null,null,null,null,null,null,null,null,null,"R042",1260]
["2021-05-01T16:14:00",1260,"Nettie Post and Sheila Johansen","2021-05-01","425.286.3602","nettie.p@comcast.net","R043 4.  Several crawl space issues need attention (as noted in our Inspection when house was purchased).","Building/Unit Maintenance",null,"Following is for OFFICIAL USE ONLY",null,null,null,null,null,null,null,null,null,null,"R043",1260]
["2021-05-01T16:14:00",1260,"Nettie Post and Sheila Johansen","2021-05-01","425.286.3602","nettie.p@comcast.net","R044 5.  Some issues with rotten wood on wood trim and shingles and some caulking needed, again as noted in our Inspection when house was purchased 2 years ago.","Building/Unit Maintenance",null,"Following is for OFFICIAL USE ONLY",null,null,null,null,null,null,null,null,null,null,"R044",1260]

{"sheet":"Pasted Download","index":3,"n_rows":7,"n_cols":20,"rows_kept":7,"cut":false,"hidden":false,"merged":[]}
["x","x","x","x","x","x","x","x","x","x","x","x","x","x","x","x","x","x","x","x"]
["2021-04-30T04:27:27",1224,"Cheryl Scheele","2021-04-29","961-0680","mamacheryl04@gmail.com","Environmental Pest control was at my house 4/27/21.  jeff Holmes sent reprt to Linda Sheeks.  I have carpenter ants!  Jeff also said maple tree in front needs to be trimmed back, so doesn't touch roof.  Ants traveling facia (?) board to feed on tree.  I would be fine with removing tree!  Thank You.  Pest control will be here May 3 about 1:00 to 2:00pm","Landscaping and Grounds",null,"Following is for OFFICIAL USE ONLY","via Print Form;","Not sure why Cheryl did it on paper.  I don't mind typing in, but can cause delay.",null,"Linda Sheeks",null,"Environmmental Pest Contol",null,null,null,"Pete A"]
["2021-05-01T16:14:00",1260,"Nettie Post and Sheila Johansen","2021-05-01",4252863602,"nettie.p@comcast.net","1.  Moss on roof needs attention ","Building/Unit Maintenance",null,"Following is for OFFICIAL USE ONLY"]
["2021-05-01T16:14:00",1260,"Nettie Post and Sheila Johansen","2021-05-01",4252863602,"nettie.p@comcast.net","2.  Carpenter ants seen inside house and in some dry rot in shingles near deck. ","Building/Unit Maintenance",null,"Following is for OFFICIAL USE ONLY"]
["2021-05-01T16:14:00",1260,"Nettie Post and Sheila Johansen","2021-05-01",4252863602,"nettie.p@comcast.net"," 3.  Old windows in one bedroom and in kitchen allow cold air seepage.","Building/Unit Maintenance",null,"Following is for OFFICIAL USE ONLY"]
["2021-05-01T16:14:00",1260,"Nettie Post and Sheila Johansen","2021-05-01",4252863602,"nettie.p@comcast.net"," 4.  Several crawl space issues need attention (as noted in our Inspection when house was purchased). ","Building/Unit Maintenance",null,"Following is for OFFICIAL USE ONLY"]
["2021-05-01T16:14:00",1260,"Nettie Post and Sheila Johansen","2021-05-01",4252863602,"nettie.p@comcast.net","5.  Some issues with rotten wood on wood trim and shingles and some caulking needed, again as noted in our Inspection when house was purchased 2 years ago.","Building/Unit Maintenance",null,"Following is for OFFICIAL USE ONLY"]

{"sheet":"Maintenance Request Data BK","index":4,"n_rows":26,"n_cols":20,"rows_kept":26,"cut":false,"hidden":false,"merged":[]}
["System Date","Unit Number","Resident Name","Request Date","Telephone Number","Your Email","Your Maintenance Request - Describe Your Maintenance Problem Below","Type of Maintenance ","Upload Files (Optional)",null,"Source Media","Notes for Form Submission by Other Than the Resident","Date Task Started","Task Manager","Date Task Completed","Contractor (if any)","Task Manager Notes","Form Destination (show if Unit Number is test)","versionline","User Name"]
[{"$f":"'Pasted Download'!#REF!","v":{"$error":"#REF!"}},1210,"Pete Asprey","2015-04-23",3605435633,null,"Dry rot over garage","Building/Unit Maintenance",null," ",null,null,null,null,null,null,null,null,null,"vacncait"]
["2019-10-10T21:23:48",1210,"Pete and Cindy Asprey","2015-04-29","360.543.5633",null,"Hi Larry, Just a reminder that we have some (maybe a lot) of dry rot in the high wall above our garage... Pete","Building/Unit Maintenance",null," ",null,null,null,null,null,null,null,null,null,"vacncait"]
["2020-04-07T21:32:29",1210,"Pete and Cindy Asprey","2015-04-09",3605435633,null,"Hi Larry, Just a reminder. We have an unknown size patch of dry rot above our garage...at least 9 months old. Someone (with a TALL ladder) should check it out before it gets structural. Pete","Building/Unit Maintenance",null," ",null,null,null,null,null,null,null,null,null,"Pete A"]
["2020-12-06T19:06:41",1237,"Catherine Collier","2020-12-06",3609330991,"drcatherine.collier@gmail.com","Window screen on NW corner got pushed out and I can't get it back on properly.","Building/Unit Maintenance",null," ",null,null,null,null,null,null,null,null,"VACNCA Form PM00.00"]
["2020-12-07T08:14:56",1207,"Cherie Thomas","2020-12-06","360-380-2097","cheriethomas49@comcast.net","&lt;&lt;Jim T  This is a real request, but I'm experimenting with automatic delivery.  Will put a copy in Larry P's box&gt;&gt;  Two things:  1. Large branches fall out of a tree behind 1209 every time the wind blows. Some land on a neighbor's deck. The last wind storm, over two weeks ago, dropped another large branch that has blown up against the Dogwood behind my deck and it is still there. The Gardener's didn't mow very neatly around it, but didn't take it away.   2. The Moss is growing over my curb again and onto the driveway and Street. This is so dangerous because it gets very slippery.I talked to the gardener last year (also talked to the Board) about controlling it but nothing seems to happen. Please have some Moss killer put down keep us old people safe when we're out walking.  Thank you!  Cherie Thomas, 1207","Landscaping and Grounds",null," ",null,null,null,null,null,null,null,null,"VACNCA Form PM00.00   Printed Copy will be sent to Larry Pollett","Pete A"]
["2020-12-07T08:28:40",1207,"Cherie Thomas","2020-12-06",3603802097,"cheriethomas49@comcast.net","Two things:  1. Large branches fall out of a tree behind 1209 every time the wind blows. Some land on a neighbor's deck. The last wind storm, over two weeks ago, dropped another large branch that has blown up against the Dogwood behind my deck and it is still there. The Gardener's didn't mow very neatly around it, but didn't take it away.   2. The Moss is growing over my curb again and onto the driveway and Street. This is so dangerous because it gets very slippery.I talked to the gardener last year (also talked to the Board) about controlling it but nothing seems to happen. Please have some Moss killer put down keep us old people safe when we're out walking.  Thank you!  Cherie Thomas, 1207","Landscaping and Grounds",null," ",null,null,null,null,null,null,null,null,"VACNCA Form PM00.00   Printed Copy will be sent to Larry Pollett","Pete A"]
["2020-12-07T08:36:02",1207,"Cherie Thomas","2020-12-06",13603802097,"cheriethomas49@comcast.net","Two things:  1. Large branches fall out of a tree behind 1209 every time the wind blows. Some land on a neighbor's deck. The last wind storm, over two weeks ago, dropped another large branch that has blown up against the Dogwood behind my deck and it is still there. The Gardener's didn't mow very neatly around it, but didn't take it away.   2. The Moss is growing over my curb again and onto the driveway and Street. This is so dangerous because it gets very slippery.I talked to the gardener last year (also talked to the Board) about controlling it but nothing seems to happen. Please have some Moss killer put down keep us old people safe when we're out walking.  Thank you!  Cherie Thomas, 1207","Landscaping and Grounds",null," ",null,null,null,null,null,null,null,null,"VACNCA Form PM00.00   Printed Copy will be sent to Larry Pollett","Pete A"]
["2020-12-09T02:35:01",1266,"Larry Green","2020-12-08",13609611992,"northwindlar@gmail.com","Pete, this looks good!! Wondering what you do with your spare time? :) PS.....Don't send this to Larry P :)  Be well, Be safe. Breathe good air Larry G","Building/Unit Maintenance",null," ",null,null,null,null,null,null,null,null,"VACNCA Form PM00.00   Printed Copy will be sent to Larry Pollett"]
["2020-12-11T04:30:25",1264,"Earl Sheneman","2020-12-10",3606477579,"ecsheneman@msn.com","We have 2 bushes/shrubs that the guys as far as I know never trim unless I complain about it. They are on the back side of the house (facing Festival Blvd) on the end closest to Green's place. They are pretty overgrown and I know won't be done unless I mention it. Thanks for the help and what you are doing for the association!","Landscaping and Grounds",null," ",null,null,null,null,null,null,null,null,"VACNCA Form PM00.00   Printed Copy will be sent to Larry Pollett"]
["2020-12-11T04:48:43",1264,"Earl Sheneman","2020-12-10",3606477579,"ecsheneman@msn.com","We have 2 bushes/shrubs that the guys as far as I know never trim unless I complain about it. They are on the back side of the house (facing Festival Blvd) on the end closest to Green's place. They are pretty overgrown and I know won't be done unless I mention it. Thanks for the help and what you are doing for the association!","Landscaping and Grounds",null," ",null,null,null,null,null,null,null,null,"VACNCA Form PM00.00   Printed Copy will be sent to Larry Pollett"]
["2020-12-21T19:43:02",1210,"Pete &amp; Cindy Asprey","2020-12-21",12096023432,"optionzz@gmail.com","Our front gutters (both the west facing and south facing gutters (near the front door) are completely plugged up and overflowing in the rain this morning.  Need a cleanout.  Thanks, Larry!","Building/Unit Maintenance",null," ",null,null,null,null,null,null,null,null,"VACNCA Form PM00.00   Printed Copy will be sent to Larry Pollett","Pete A"]
["2020-12-25T07:18:10",1210,"Peter Asprey","2020-12-24","1 360-543-5633","optionzz@outlook.com","This is a routing test.  It SHOULD send a work request to Jim T from Pete A with a useless VACNCA sign jpg attached.  Did it :-)?  After Delete Cache; changed to outlook.com &quot;Your Email&quot;","Landscaping and Grounds","https://www.villageatcordatanorthside.com/vacncaresidents/wp-admin/admin-ajax.php?action=rednao_sf_getfile&id=793d13411223ff0a08d50d9ce88db949"," ",null,null,null,null,null,null,null,null,null,"Pete A"]
["2021-02-06T16:48:20",1266,"Larry Green","2021-02-06","360-961-1992","northwindlar@gmail.com","Latch on the club house door is sticking. Club house may be left un secured. needs immediate attention!","Building/Unit Maintenance",null," "]
["2021-03-08T16:23:40",1200,"Ron Roberts","2021-03-08",3602244467,"r.h.roberts2@comcast.net","It is time to remove the large maple tree behind unit 1198 and next to 1200.  According to Don Wight root system is extending into irrigation pipelines and control unit junction box. Also limbs are extending over deck and becoming close to both units. ","Landscaping and Grounds",null," "]
["2021-03-16T18:11:21",1207,"Cherie Thomas","2021-03-16",13603802097,"cheriethomas49@comcast.net","The plumbers who replaced the pressure valve between 1207 and 1205 left a hole that needs to be filled in with soil.  They also left broken chunks of curb that needs to be hauled off.","Landscaping and Grounds",null," "]
["2021-03-30T19:50:01",1266,"Larry Green","2021-03-30","961-1992","northwindlar@gmail.com","See attached: Garage Lights Out 1200 Right side of garage 1252 1254 1265 left side of the garage  ","Building/Unit Maintenance","https://www.villageatcordatanorthside.com/vacncaresidents/wp-admin/admin-ajax.php?action=rednao_sf_getfile&id=d6001863628a7ea798607df58e1efc34"," ",null,null,null,null,null,null,null,null,null,"Pete A"]
["2021-03-30T20:10:17",1248,"Carl Grant","2021-03-27","603-0564","grant_carl@hotmail.com","The back of the 1248 house room got missed during the last roof treaments for moss.  Would dyou please reschedule.  They should come back right away since they missed it.  Thanks, Carl","Building/Unit Maintenance","https://www.villageatcordatanorthside.com/vacncaresidents/wp-admin/admin-ajax.php?action=rednao_sf_getfile&id=dca4d291e611af2a7aa1dabf55eef8c6"," ",null,null,null,null,null,null,null,null,null,"Pete A"]
["2021-04-08T18:26:43",1214,"Judy Hultgren","2021-04-08",3603668803,"j_d_hultgren@msn.com","Older wooden window is stuck closed.","Building/Unit Maintenance",null," "]
["2021-04-08T18:27:52",1214,"Judy Hultgren","2021-04-08",3603668803,"j_d_hultgren@msn.com","Facia board rotted over back deck steps.","Building/Unit Maintenance",null," "]
["2021-04-11T22:32:53",1207,"Cherie Thomas","2021-04-11",13603802097,"cheriethomas49@comcast.net","The California Lilac on the west side of my deck is almost completely dead.  Needs to be either cut back or removed.  Thanks!","Landscaping and Grounds",null," "]
["2021-04-13T00:26:21",1239,"Barbara Willis","2021-04-12","360 671 5498","Jandbw1960@gmail.com","Patio light needs to be replaced.","Building/Unit Maintenance",null," "]
["2021-04-14T23:08:08",1205,"Dale Harvey (submitted by Cherie Thomas","2021-04-14",13603802097,"cheriethomas49@comcast.net","Large root growing into/against garage foundation.","Building/Unit Maintenance",null," "]
["2021-04-15T19:27:51",1212,"Charlotte   Martin","2021-04-15",3606565774,"Clakelimerick@msn.com","My request is to please have the gardeners rake the leaves and Bush droppings from under the bushes between me and  1214.  I have requested this MANY times and never done.  ","Landscaping and Grounds",null," "]
["2021-04-15T19:30:32",1212,"Charlotte Martin","2021-04-15",3606565774,"Clakelimerick@msn.com","There is a healthy growth of moss on the garage roof on the back side. ","Building/Unit Maintenance",null," "]
["2021-04-17T19:10:52",1231,"Tim &amp; Yvonne Metune","2021-04-15","733-7622","vacncaboard@gmail.com","3 Window Seals--when open swing out drops down.  l window seals Note:  Entered by I.T. ","Building/Unit Maintenance",null," ",null,null,null,null,null,null,null,null,null,"Pete A"]

{"sheet":"Maintenance Requests Previous","index":5,"n_rows":21,"n_cols":18,"rows_kept":21,"cut":false,"hidden":false,"merged":[]}
["Task Manager ID","Days Open"," Completion  Days","System Date","Request Unit Number","Requesting Resident Name","Request Date","Telephone Number","Requester \n Email","Your Maintenance Request - Describe Your Maintenance Problem Below","Type of Maintenance ","Upload Files (Optional)","versionline","Form Destination (show if Unit Number is test)","Task Completer User Name","Task Completion Date","Work1","Work2"]
[" ",{"$f":"IF(P2=\"\",TODAY()-$G2,\"\")","v":762},{"$f":"IF(P2<>\"\",P2-$D2,\"\")","v":""},"2020-04-07T21:32:29",1210,"Pete and Cindy Asprey","2019-04-09",3605435633,"optionzz@gmail.com","Hi Larry, Just a reminder. We have an unknown size patch of dry rot above our garage...at least 9 months old. Someone (with a TALL ladder) should check it out before it gets structural. Pete","Building/Unit Maintenance",null,null,null," ",null," "]
[" ",578,"","2019-10-10T21:23:48",1210,"Pete and Cindy Asprey","2019-10-10","360.543.5633","optionzz@gmail.com","Hi Larry, Just a reminder that we have some (maybe a lot) of dry rot in the high wall above our garage... Pete","Building/Unit Maintenance",null,null,null," ",null," "]
[" ",155,"","2020-12-07T08:36:02",1207,"Cherie Thomas","2020-12-06",13603802097,"cheriethomas49@comcast.net","Two things:  1. Large branches fall out of a tree behind 1209 every time the wind blows. Some land on a neighbor's deck. The last wind storm, over two weeks ago, dropped another large branch that has blown up against the Dogwood behind my deck and it is still there. The Gardener's didn't mow very neatly around it, but didn't take it away.   2. The Moss is growing over my curb again and onto the driveway and Street. This is so dangerous because it gets very slippery.I talked to the gardener last year (also talked to the Board) about controlling it but nothing seems to happen. Please have some Moss killer put down keep us old people safe when we're out walking.  Thank you!  Cherie Thomas, 1207","Landscaping and Grounds",null,"VACNCA Form PM00.00   Printed Copy will be sent to Larry Pollett",null," ",null," "]
[" ",153,"","2020-12-09T02:35:01",1266,"Larry Green","2020-12-08",13609611992,"northwindlar@gmail.com","Pete, this looks good!! Wondering what you do with your spare time? :) PS.....Don't send this to Larry P :)  Be well, Be safe. Breathe good air Larry G","Building/Unit Maintenance",null,"VACNCA Form PM00.00 ",null," ",null," "]
[" ",151,"","2020-12-11T04:30:25",1264,"Earl Sheneman","2020-12-10",3606477579,"ecsheneman@msn.com","We have 2 bushes/shrubs that the guys as far as I know never trim unless I complain about it. They are on the back side of the house (facing Festival Blvd) on the end closest to Green's place. They are pretty overgrown and I know won't be done unless I mention it. Thanks for the help and what you are doing for the association!","Landscaping and Grounds",null,"VACNCA Form PM00.01",null," ",null," "]
[" ",140,"","2020-12-21T19:43:02",1210,"Pete and Cindy Asprey","2020-12-21",12096023432,"optionzz@gmail.com","Our front gutters (both the west facing and south facing gutters (near the front door) are completely plugged up and overflowing in the rain this morning.  Need a cleanout.  Thanks, Larry!","Building/Unit Maintenance",null,"VACNCA Form PM00.00   Printed Copy will be sent to Larry Pollett",null," ",null," "]
[" ",137,"","2020-12-25T07:18:10",1210,"Peter Asprey","2020-12-24","1 360-543-5633","optionzz@outlook.com","This is a routing test.  It SHOULD send a work request to Jim T from Pete A with a useless VACNCA sign jpg attached.  Did it :-)?  After Delete Cache; changed to outlook.com &quot;Your Email&quot;","Landscaping and Grounds","https://www.villageatcordatanorthside.com/vacncaresidents/wp-admin/admin-ajax.php?action=rednao_sf_getfile&id=793d13411223ff0a08d50d9ce88db949"," ",null," ",null," "]
[" ",63,"","2021-03-08T16:23:40",1200,"Ron Roberts","2021-03-08",3602244467,"r.h.roberts2@comcast.net","It is time to remove the large maple tree behind unit 1198 and next to 1200.  According to Don Wight root system is extending into irrigation pipelines and control unit junction box. Also limbs are extending over deck and becoming close to both units. ","Landscaping and Grounds",null," ",null," ",null," "]
[" ",55,"","2021-03-16T18:11:21",1207,"Cherie Thomas","2021-03-16",13603802097,"cheriethomas49@comcast.net","The plumbers who replaced the pressure valve between 1207 and 1205 left a hole that needs to be filled in with soil.  They also left broken chunks of curb that needs to be hauled off.","Landscaping and Grounds",null," ",null," ",null," "]
[" ",44,"","2021-03-30T20:10:17",1248,"Carl Grant","2021-03-27","603-0564","grant_carl@hotmail.com","The back of the 1248 house room got missed during the last roof treaments for moss.  Would dyou please reschedule.  They should come back right away since they missed it.  Thanks, Carl","Building/Unit Maintenance","https://www.villageatcordatanorthside.com/vacncaresidents/wp-admin/admin-ajax.php?action=rednao_sf_getfile&id=dca4d291e611af2a7aa1dabf55eef8c6"," ",null," ",null," "]
[" ",41,"","2021-03-30T19:50:01",1266,"Larry Green","2021-03-30","961-1992","northwindlar@gmail.com","See attached: Garage Lights Out 1200 Right side of garage 1252 1254 1265 left side of the garage  ","Building/Unit Maintenance","https://www.villageatcordatanorthside.com/vacncaresidents/wp-admin/admin-ajax.php?action=rednao_sf_getfile&id=d6001863628a7ea798607df58e1efc34"," ",null," ",null," "]
[" ",32,"","2021-04-08T18:26:43",1214,"Judy Hultgren","2021-04-08",3603668803,"j_d_hultgren@msn.com","Older wooden window is stuck closed.","Building/Unit Maintenance",null," ",null," ",null," "]
[" ",32,"","2021-04-08T18:27:52",1214,"Judy Hultgren","2021-04-08",3603668803,"j_d_hultgren@msn.com","Facia board rotted over back deck steps.","Building/Unit Maintenance",null," ",null," ",null," "]
[" ",29,"","2021-04-11T22:32:53",1207,"Cherie Thomas","2021-04-11",13603802097,"cheriethomas49@comcast.net","The California Lilac on the west side of my deck is almost completely dead.  Needs to be either cut back or removed.  Thanks!","Landscaping and Grounds",null," ",null," ",null," "]
[" ",26,{"$f":"IF(P16<>\"\",P16-$G16,\"\")","v":""},"2021-04-14T23:08:08",1205,"Dale Harvey (submitted by Cherie Thomas","2021-04-14",13603802097,"cheriethomas49@comcast.net","Large root growing into/against garage foundation.","Building/Unit Maintenance",null,null,null,null,null," "]
[" ",25,"","2021-04-15T19:27:51",1212,"Charlotte Martin","2021-04-15",3606565774,"Clakelimerick@msn.com","My request is to please have the gardeners rake the leaves and Bush droppings from under the bushes between me and  1214.  I have requested this MANY times and never done.  ","Landscaping and Grounds",null,null,null,null,null," "]
[" ",25,"","2021-04-15T19:30:32",1212,"Charlotte Martin","2021-04-15",3606565774,"Clakelimerick@msn.com","There is a healthy growth of moss on the garage roof on the back side. ","Building/Unit Maintenance",null,null,null,null,null," "]
["LindaA","",123,"2020-12-06T19:06:41",1237,"Catherine Collier","2020-12-06",3609330991,"drcatherine.collier@gmail.com","Window screen on NW corner got pushed out and I can't get it back on properly.","Building/Unit Maintenance",null,"VACNCA Form PM00.00",null,"LindaA","2021-04-08"]
["LindaA","",61,"2021-02-06T16:48:20",1266,"Larry Green","2021-02-06","360-961-1992","northwindlar@gmail.com","Latch on the club house door is sticking. Club house may be left un secured. needs immediate attention!","Building/Unit Maintenance",null,null,null,"LindaA","2021-04-08"]
["RonR","",1,"2021-04-13T00:26:21",1239,"Barbara Willis","2021-04-12","360 671 5498","Jandbw1960@gmail.com","Patio light needs to be replaced.","Building/Unit Maintenance",null," ",null,"RonR","2021-04-13"]

{"sheet":"_Export 4-18-21 Sunday","index":6,"n_rows":26,"n_cols":20,"rows_kept":26,"cut":false,"hidden":false,"merged":[]}
["Date","Unit Number","Resident Name","Request Date","Telephone Number","Your Email","Your Maintenance Request - Describe Your Maintenance Problem Below","Type of Maintenance ","Upload Files (Optional)",null,"Source Media","Notes for Form Submission by Other Than the Resident","Date Task Started","Task Manager","Date Task Completed","Contractor (if any)","Task Manager Notes","Form Destination (show if Unit Number is test)","versionline","User Name"]
["2019-09-18T02:53:41",1210,"Pete Asprey","2015-04-23",3605435633,null,"Dry rot over garage","Building/Unit Maintenance",null,null,null,null,null,null,null,null,null,null,null,"vacncait"]
["2019-10-10T21:23:48",1210,"Pete &amp; Cindy Asprey","2015-04-29","360.543.5633",null,"Hi Larry, Just a reminder that we have some (maybe a lot) of dry rot in the high wall above our garage... Pete","Building/Unit Maintenance",null,null,null,null,null,null,null,null,null,null,null,"vacncait"]
["2020-04-07T21:32:29",1210,"Pete &amp; Cindy Asprey","2015-04-09",3605435633,null,"Hi Larry, Just a reminder. We have an unknown size patch of dry rot above our garage...at least 9 months old. Someone (with a TALL ladder) should check it out before it gets structural. Pete","Building/Unit Maintenance",null,null,null,null,null,null,null,null,null,null,null,"Pete A"]
["2020-12-06T19:06:41",1237,"Catherine Collier","2020-12-06",3609330991,"drcatherine.collier@gmail.com","Window screen on NW corner got pushed out and I can't get it back on properly.","Building/Unit Maintenance",null,null,null,null,null,null,null,null,null,null,"VACNCA Form PM00.00"]
["2020-12-07T08:14:56",1207,"Cherie Thomas","2020-12-06","360-380-2097","cheriethomas49@comcast.net","&lt;&lt;Jim T  This is a real request, but I'm experimenting with automatic delivery.  Will put a copy in Larry P's box&gt;&gt;  Two things:  1. Large branches fall out of a tree behind 1209 every time the wind blows. Some land on a neighbor's deck. The last wind storm, over two weeks ago, dropped another large branch that has blown up against the Dogwood behind my deck and it is still there. The Gardener's didn't mow very neatly around it, but didn't take it away.   2. The Moss is growing over my curb again and onto the driveway and Street. This is so dangerous because it gets very slippery.I talked to the gardener last year (also talked to the Board) about controlling it but nothing seems to happen. Please have some Moss killer put down keep us old people safe when we're out walking.  Thank you!  Cherie Thomas, 1207","Landscaping and Grounds",null,null,null,null,null,null,null,null,null,null,"VACNCA Form PM00.00   Printed Copy will be sent to Larry Pollett","Pete A"]
["2020-12-07T08:28:40",1207,"Cherie Thomas","2020-12-06",3603802097,"cheriethomas49@comcast.net","Two things:  1. Large branches fall out of a tree behind 1209 every time the wind blows. Some land on a neighbor's deck. The last wind storm, over two weeks ago, dropped another large branch that has blown up against the Dogwood behind my deck and it is still there. The Gardener's didn't mow very neatly around it, but didn't take it away.   2. The Moss is growing over my curb again and onto the driveway and Street. This is so dangerous because it gets very slippery.I talked to the gardener last year (also talked to the Board) about controlling it but nothing seems to happen. Please have some Moss killer put down keep us old people safe when we're out walking.  Thank you!  Cherie Thomas, 1207","Landscaping and Grounds",null,null,null,null,null,null,null,null,null,null,"VACNCA Form PM00.00   Printed Copy will be sent to Larry Pollett","Pete A"]
["2020-12-07T08:36:02",1207,"Cherie Thomas","2020-12-06",13603802097,"cheriethomas49@comcast.net","Two things:  1. Large branches fall out of a tree behind 1209 every time the wind blows. Some land on a neighbor's deck. The last wind storm, over two weeks ago, dropped another large branch that has blown up against the Dogwood behind my deck and it is still there. The Gardener's didn't mow very neatly around it, but didn't take it away.   2. The Moss is growing over my curb again and onto the driveway and Street. This is so dangerous because it gets very slippery.I talked to the gardener last year (also talked to the Board) about controlling it but nothing seems to happen. Please have some Moss killer put down keep us old people safe when we're out walking.  Thank you!  Cherie Thomas, 1207","Landscaping and Grounds",null,null,null,null,null,null,null,null,null,null,"VACNCA Form PM00.00   Printed Copy will be sent to Larry Pollett","Pete A"]
["2020-12-09T02:35:01",1266,"Larry Green","2020-12-08",13609611992,"northwindlar@gmail.com","Pete, this looks good!! Wondering what you do with your spare time? :) PS.....Don't send this to Larry P :)  Be well, Be safe. Breathe good air Larry G","Building/Unit Maintenance",null,null,null,null,null,null,null,null,null,null,"VACNCA Form PM00.00   Printed Copy will be sent to Larry Pollett"]
["2020-12-11T04:30:25",1264,"Earl Sheneman","2020-12-10",3606477579,"ecsheneman@msn.com","We have 2 bushes/shrubs that the guys as far as I know never trim unless I complain about it. They are on the back side of the house (facing Festival Blvd) on the end closest to Green's place. They are pretty overgrown and I know won't be done unless I mention it. Thanks for the help and what you are doing for the association!","Landscaping and Grounds",null,null,null,null,null,null,null,null,null,null,"VACNCA Form PM00.00   Printed Copy will be sent to Larry Pollett"]
["2020-12-11T04:48:43",1264,"Earl Sheneman","2020-12-10",3606477579,"ecsheneman@msn.com","We have 2 bushes/shrubs that the guys as far as I know never trim unless I complain about it. They are on the back side of the house (facing Festival Blvd) on the end closest to Green's place. They are pretty overgrown and I know won't be done unless I mention it. Thanks for the help and what you are doing for the association!","Landscaping and Grounds",null,null,null,null,null,null,null,null,null,null,"VACNCA Form PM00.00   Printed Copy will be sent to Larry Pollett"]
["2020-12-21T19:43:02",1210,"Pete &amp; Cindy Asprey","2020-12-21",12096023432,"optionzz@gmail.com","Our front gutters (both the west facing and south facing gutters (near the front door) are completely plugged up and overflowing in the rain this morning.  Need a cleanout.  Thanks, Larry!","Building/Unit Maintenance",null,null,null,null,null,null,null,null,null,null,"VACNCA Form PM00.00   Printed Copy will be sent to Larry Pollett","Pete A"]
["2020-12-25T07:18:10",1210,"Peter Asprey","2020-12-24","1 360-543-5633","optionzz@outlook.com","This is a routing test.  It SHOULD send a work request to Jim T from Pete A with a useless VACNCA sign jpg attached.  Did it :-)?  After Delete Cache; changed to outlook.com &quot;Your Email&quot;","Landscaping and Grounds","https://www.villageatcordatanorthside.com/vacncaresidents/wp-admin/admin-ajax.php?action=rednao_sf_getfile&id=793d13411223ff0a08d50d9ce88db949",null,null,null,null,null,null,null,null,null,null,"Pete A"]
["2021-02-06T16:48:20",1266,"Larry Green","2021-02-06","360-961-1992","northwindlar@gmail.com","Latch on the club house door is sticking. Club house may be left un secured. needs immediate attention!","Building/Unit Maintenance"]
["2021-03-08T16:23:40",1200,"Ron Roberts","2021-03-08",3602244467,"r.h.roberts2@comcast.net","It is time to remove the large maple tree behind unit 1198 and next to 1200.  According to Don Wight root system is extending into irrigation pipelines and control unit junction box. Also limbs are extending over deck and becoming close to both units. ","Landscaping and Grounds"]
["2021-03-16T18:11:21",1207,"Cherie Thomas","2021-03-16",13603802097,"cheriethomas49@comcast.net","The plumbers who replaced the pressure valve between 1207 and 1205 left a hole that needs to be filled in with soil.  They also left broken chunks of curb that needs to be hauled off.","Landscaping and Grounds"]
["2021-03-30T19:50:01",1266,"Larry Green","2021-03-30","961-1992","northwindlar@gmail.com","See attached: Garage Lights Out 1200 Right side of garage 1252 1254 1265 left side of the garage  ","Building/Unit Maintenance","https://www.villageatcordatanorthside.com/vacncaresidents/wp-admin/admin-ajax.php?action=rednao_sf_getfile&id=d6001863628a7ea798607df58e1efc34",null,null,null,null,null,null,null,null,null,null,"Pete A"]
["2021-03-30T20:10:17",1248,"Carl Grant","2021-03-27","603-0564","grant_carl@hotmail.com","The back of the 1248 house room got missed during the last roof treaments for moss.  Would dyou please reschedule.  They should come back right away since they missed it.  Thanks, Carl","Building/Unit Maintenance","https://www.villageatcordatanorthside.com/vacncaresidents/wp-admin/admin-ajax.php?action=rednao_sf_getfile&id=dca4d291e611af2a7aa1dabf55eef8c6",null,null,null,null,null,null,null,null,null,null,"Pete A"]
["2021-04-08T18:26:43",1214,"Judy Hultgren","2021-04-08",3603668803,"j_d_hultgren@msn.com","Older wooden window is stuck closed.","Building/Unit Maintenance"]
["2021-04-08T18:27:52",1214,"Judy Hultgren","2021-04-08",3603668803,"j_d_hultgren@msn.com","Facia board rotted over back deck steps.","Building/Unit Maintenance"]
["2021-04-11T22:32:53",1207,"Cherie Thomas","2021-04-11",13603802097,"cheriethomas49@comcast.net","The California Lilac on the west side of my deck is almost completely dead.  Needs to be either cut back or removed.  Thanks!","Landscaping and Grounds"]
["2021-04-13T00:26:21",1239,"Barbara Willis","2021-04-12","360 671 5498","Jandbw1960@gmail.com","Patio light needs to be replaced.","Building/Unit Maintenance"]
["2021-04-14T23:08:08",1205,"Dale Harvey (submitted by Cherie Thomas","2021-04-14",13603802097,"cheriethomas49@comcast.net","Large root growing into/against garage foundation.","Building/Unit Maintenance"]
["2021-04-15T19:27:51",1212,"Charlotte   Martin","2021-04-15",3606565774,"Clakelimerick@msn.com","My request is to please have the gardeners rake the leaves and Bush droppings from under the bushes between me and  1214.  I have requested this MANY times and never done.  ","Landscaping and Grounds"]
["2021-04-15T19:30:32",1212,"Charlotte Martin","2021-04-15",3606565774,"Clakelimerick@msn.com","There is a healthy growth of moss on the garage roof on the back side. ","Building/Unit Maintenance"]
["2021-04-17T19:10:52",1231,"Tim &amp; Yvonne Metune","2021-04-15","733-7622","vacncaboard@gmail.com","3 Window Seals--when open swing out drops down.  l window seals Note:  Entered by I.T. ","Building/Unit Maintenance",null,null,null,null,null,null,null,null,null,null,null,"Pete A"]